Workbook

Sheet Consignes

Sheet Version
B7: Modifications avril 2023 - ICEDD
B8: Mise à jour de valeurs, logo, coûts, etc - Possibilité d'aller jusque 2030 - Degrés jours - Logo E+ onglet consigne Nouvelles fonctionnalités - Prise en compte d'un compteur mono et d'un compteur bihoraire dans un même bâtiment - Autoproduction électrique et autconsommation Améliorations diverses - Résolution de la fonctionnalité pour afficher un certain nombre de bâtiments. N'affichait que N-1 lignes et N_bat s'affichait en D6 au lieu de D7. - Suppression de l'onglet caché ResumeBatiment qui ne se mettait pas à jour et qui n'était pas pertinent

Sheet Analyse graphique
A13: Graphiques ELECTRICITE
A132: Graphiques COMBUSTIBLES
A286: Graphiques EAU
A288: Il est toujours bon de se demander si les fluctuations sont justifiées ou si elles proviennent d'une anomalie dont il faut rechercher la cause. Pour ce faire un relevé mensuel sera plus parlant et permetttra de mieux cibler la dérive.

Sheet Encodage
A2: Encodage des données et des factures
A4: Année du 1er encodage: | D4: 2009
A5: Choix de degrés jours: | D5: 16,5/16,5
A6: Secteur général: | D6: Aide à la jeunesse
A7: Nombre de bâtiments: | D7: 12
B9: Aller à ---> | C9: =A13 -> 2009 | D9: =C9+1 -> 2010 | E9: 2011 | F9: 2012 | G9: 2013 | H9: 2014 | I9: 2015 | J9: 2016
B11: Nom du bâtiment | C11: Surface chauffée | D11: Affectation du bâtiment | E11: Horaires d'occupa-tion du bâtiment | F11: Usage énergétique spécifique | G11: Energies renouvelables | H11: Achat électricité (mono-horaire) | I11: Achat électricité Heures pleines | J11: Achat électricité Heures creuses | K11: Coût total électricité | L11: Autoproduction électrcitié | M11: Injection sur le réseau | N11: =Paramètres!$A$3 -> gaz naturel | O11: =Paramètres!$A$4 -> gasoil | P11: =Paramètres!$A$5 -> propane | Q11: =Paramètres!$A$6 -> pellets | R11: =Paramètres!$A$7 -> Autres | S11: Coût total combustible | T11: Eau | U11: Coût total Eau | V11: Evol Conso Eau v/v année précédente | W11: Achat électricité (total) | X11: Electricité consommée (total) | Y11: Auto-consommation électrcité | Z11: Elec Proportion Heure Creuse (Achat) | AA11: Evol Conso Elec v/v année précédente | AB11: Cons spéc d'électricité | AC11: Cons spéc d'électricité moy du secteur (2012) | AD11: Combustible (total) | AE11: % de norma-lisation | AF11: Combustible (total) normalisé | AG11: Cons spéc normalisée de combustible | AH11: Evol Cons spéc normalisée de combustible v/v année précédente | AI11: Cons spéc chauffage moy du secteur (2012) | AJ11: Evol Conso spéc normalisée de combustible v/v année du 1er encodage | AK11: Potentiel d'économie de combustible
B12: Sélectionner les bâtiments | C12: m² | H12: kWh | I12: kWh | J12: kWh | K12: euro | L12: kWh | M12: kWh | N12: =Paramètres!$B$3 -> kWhs | O12: =Paramètres!$B$4 -> litre | P12: =Paramètres!$B$5 -> m³ | Q12: =Paramètres!$B$6 -> kg | R12: =Paramètres!$B$7 -> kWh | S12: euro | T12: m³ | U12: euro | V12: % | W12: kWh | X12: kWh | Y12: % | Z12: % | AA12: % | AB12: kWh/m² | AC12: kWh/m² | AD12: kWhi | AE12: % | AF12: kWhi | AG12: kWhi/m² | AH12: % | AI12: kWhi/m² | AJ12: % | AK12: kWh²/m²
A13: =D4 -> 2009
A14: =A13 -> 2009 | B14: Bâtiment 1 | D14: A sélectionner dans la liste déroulante | F14: à encoder | G14: à encoder | W14: =SUM(H14:J14) -> 0 | X14: 0 | Y14: =IFERROR((L14-M14)/L14,"NA") -> NA | Z14: =IFERROR(J14/W14,"NA") -> NA | AB14: =IFERROR(X14/C14,0) -> 0 | AC14: =VLOOKUP(D14,Paramètres!$A$24:$D$36,3) -> 100 | AD14: =N14*Paramètres!$C$3+O14*Paramètres!$C$4+Encodage!P14*Paramètres!$C$5+Encodage!Q14*Paramètres!$C$6+R14*Paramètres!$C$7 -> 0 | AE14: =VLOOKUP(D14,Paramètres!$A$24:$E$36,5) -> 0.85 | AF14: =IFERROR(AD14*(1-AE14)+(AD14*AE14*DJ!$D$3/VLOOKUP(Encodage!A14,DJ!$A$3:$D$25,4)),0) -> 0 | AG14: =IFERROR(AF14/C14,0) -> 0 | AI14: =VLOOKUP(D14,Paramètres!$A$24:$D$36,2) -> 100 | AJ14: =IFERROR(AG14/AG$14,"") ->  | AK14: =AF14*AG14 -> 0
A15: =A13 -> 2009 | B15: Bâtiment 2 | D15: A sélectionner dans la liste déroulante | F15: à encoder | G15: à encoder | W15: =SUM(H15:J15) -> 0 | X15: =W15+L15-M15 -> 0 | Y15: =IFERROR((L15-M15)/L15,"NA") -> NA | Z15: NA | AB15: 0 | AC15: =VLOOKUP(D15,Paramètres!$A$24:$D$36,3) -> 100 | AD15: =N15*Paramètres!$C$3+O15*Paramètres!$C$4+Encodage!P15*Paramètres!$C$5+Encodage!Q15*Paramètres!$C$6+R15*Paramètres!$C$7 -> 0 | AE15: =VLOOKUP(D15,Paramètres!$A$24:$E$36,5) -> 0.85 | AF15: =IFERROR(AD15*(1-AE15)+(AD15*AE15*DJ!$D$3/VLOOKUP(Encodage!A15,DJ!$A$3:$D$25,4)),0) -> 0 | AG15: =IFERROR(AF15/C15,0) -> 0 | AI15: =VLOOKUP(D15,Paramètres!$A$24:$D$36,2) -> 100 | AK15: =AF15*AG15 -> 0
A16: =A15 -> 2009 | B16: Bâtiment 3 | D16: A sélectionner dans la liste déroulante | F16: à encoder | G16: à encoder | W16: 0 | X16: 0 | Y16: =IFERROR((L16-M16)/L16,"NA") -> NA | Z16: NA | AB16: 0 | AC16: =VLOOKUP(D16,Paramètres!$A$24:$D$36,3) -> 100 | AD16: =N16*Paramètres!$C$3+O16*Paramètres!$C$4+Encodage!P16*Paramètres!$C$5+Encodage!Q16*Paramètres!$C$6+R16*Paramètres!$C$7 -> 0 | AE16: =VLOOKUP(D16,Paramètres!$A$24:$E$36,5) -> 0.85 | AF16: =IFERROR(AD16*(1-AE16)+(AD16*AE16*DJ!$D$3/VLOOKUP(Encodage!A16,DJ!$A$3:$D$25,4)),0) -> 0 | AG16: 0 | AI16: =VLOOKUP(D16,Paramètres!$A$24:$D$36,2) -> 100 | AK16: 0
A17: 2009 | B17: Bâtiment 4 | D17: A sélectionner dans la liste déroulante | F17: à encoder | G17: à encoder | W17: =SUM(H17:J17) -> 0 | X17: 0 | Y17: NA | Z17: NA | AB17: 0 | AC17: =VLOOKUP(D17,Paramètres!$A$24:$D$36,3) -> 100 | AD17: =N17*Paramètres!$C$3+O17*Paramètres!$C$4+Encodage!P17*Paramètres!$C$5+Encodage!Q17*Paramètres!$C$6+R17*Paramètres!$C$7 -> 0 | AE17: =VLOOKUP(D17,Paramètres!$A$24:$E$36,5) -> 0.85 | AF17: =IFERROR(AD17*(1-AE17)+(AD17*AE17*DJ!$D$3/VLOOKUP(Encodage!A17,DJ!$A$3:$D$25,4)),0) -> 0 | AG17: 0 | AI17: =VLOOKUP(D17,Paramètres!$A$24:$D$36,2) -> 100 | AK17: 0
A18: 2009 | B18: Bâtiment 5 | D18: A sélectionner dans la liste déroulante | F18: à encoder | G18: à encoder | W18: 0 | X18: 0 | Y18: NA | Z18: NA | AB18: 0 | AC18: =VLOOKUP(D18,Paramètres!$A$24:$D$36,3) -> 100 | AD18: =N18*Paramètres!$C$3+O18*Paramètres!$C$4+Encodage!P18*Paramètres!$C$5+Encodage!Q18*Paramètres!$C$6+R18*Paramètres!$C$7 -> 0 | AE18: =VLOOKUP(D18,Paramètres!$A$24:$E$36,5) -> 0.85 | AF18: =IFERROR(AD18*(1-AE18)+(AD18*AE18*DJ!$D$3/VLOOKUP(Encodage!A18,DJ!$A$3:$D$25,4)),0) -> 0 | AG18: 0 | AI18: =VLOOKUP(D18,Paramètres!$A$24:$D$36,2) -> 100 | AK18: 0
A19: 2009 | B19: Bâtiment 6 | D19: A sélectionner dans la liste déroulante | F19: à encoder | G19: à encoder | W19: 0 | X19: =W19+L19-M19 -> 0 | Y19: NA | Z19: NA | AB19: 0 | AC19: =VLOOKUP(D19,Paramètres!$A$24:$D$36,3) -> 100 | AD19: =N19*Paramètres!$C$3+O19*Paramètres!$C$4+Encodage!P19*Paramètres!$C$5+Encodage!Q19*Paramètres!$C$6+R19*Paramètres!$C$7 -> 0 | AE19: =VLOOKUP(D19,Paramètres!$A$24:$E$36,5) -> 0.85 | AF19: =IFERROR(AD19*(1-AE19)+(AD19*AE19*DJ!$D$3/VLOOKUP(Encodage!A19,DJ!$A$3:$D$25,4)),0) -> 0 | AG19: 0 | AI19: =VLOOKUP(D19,Paramètres!$A$24:$D$36,2) -> 100 | AK19: 0
A20: 2009 | B20: Bâtiment 7 | D20: A sélectionner dans la liste déroulante | F20: à encoder | G20: à encoder | W20: 0 | X20: 0 | Y20: NA | Z20: NA | AB20: 0 | AC20: =VLOOKUP(D20,Paramètres!$A$24:$D$36,3) -> 100 | AD20: =N20*Paramètres!$C$3+O20*Paramètres!$C$4+Encodage!P20*Paramètres!$C$5+Encodage!Q20*Paramètres!$C$6+R20*Paramètres!$C$7 -> 0 | AE20: =VLOOKUP(D20,Paramètres!$A$24:$E$36,5) -> 0.85 | AF20: =IFERROR(AD20*(1-AE20)+(AD20*AE20*DJ!$D$3/VLOOKUP(Encodage!A20,DJ!$A$3:$D$25,4)),0) -> 0 | AG20: 0 | AI20: =VLOOKUP(D20,Paramètres!$A$24:$D$36,2) -> 100 | AK20: 0
A21: 2009 | B21: Bâtiment 8 | D21: A sélectionner dans la liste déroulante | F21: à encoder | G21: à encoder | W21: 0 | X21: 0 | Y21: NA | Z21: NA | AB21: 0 | AC21: =VLOOKUP(D21,Paramètres!$A$24:$D$36,3) -> 100 | AD21: =N21*Paramètres!$C$3+O21*Paramètres!$C$4+Encodage!P21*Paramètres!$C$5+Encodage!Q21*Paramètres!$C$6+R21*Paramètres!$C$7 -> 0 | AE21: =VLOOKUP(D21,Paramètres!$A$24:$E$36,5) -> 0.85 | AF21: =IFERROR(AD21*(1-AE21)+(AD21*AE21*DJ!$D$3/VLOOKUP(Encodage!A21,DJ!$A$3:$D$25,4)),0) -> 0 | AG21: 0 | AI21: =VLOOKUP(D21,Paramètres!$A$24:$D$36,2) -> 100 | AK21: 0
A22: 2009 | B22: Bâtiment 9 | D22: A sélectionner dans la liste déroulante | F22: à encoder | G22: à encoder | W22: 0 | X22: 0 | Y22: NA | Z22: NA | AB22: 0 | AC22: =VLOOKUP(D22,Paramètres!$A$24:$D$36,3) -> 100 | AD22: =N22*Paramètres!$C$3+O22*Paramètres!$C$4+Encodage!P22*Paramètres!$C$5+Encodage!Q22*Paramètres!$C$6+R22*Paramètres!$C$7 -> 0 | AE22: =VLOOKUP(D22,Paramètres!$A$24:$E$36,5) -> 0.85 | AF22: =IFERROR(AD22*(1-AE22)+(AD22*AE22*DJ!$D$3/VLOOKUP(Encodage!A22,DJ!$A$3:$D$25,4)),0) -> 0 | AG22: 0 | AI22: =VLOOKUP(D22,Paramètres!$A$24:$D$36,2) -> 100 | AK22: 0
A23: 2009 | B23: Bâtiment 10 | D23: A sélectionner dans la liste déroulante | F23: à encoder | G23: à encoder | W23: 0 | X23: 0 | Y23: NA | Z23: NA | AB23: 0 | AC23: =VLOOKUP(D23,Paramètres!$A$24:$D$36,3) -> 100 | AD23: =N23*Paramètres!$C$3+O23*Paramètres!$C$4+Encodage!P23*Paramètres!$C$5+Encodage!Q23*Paramètres!$C$6+R23*Paramètres!$C$7 -> 0 | AE23: =VLOOKUP(D23,Paramètres!$A$24:$E$36,5) -> 0.85 | AF23: =IFERROR(AD23*(1-AE23)+(AD23*AE23*DJ!$D$3/VLOOKUP(Encodage!A23,DJ!$A$3:$D$25,4)),0) -> 0 | AG23: 0 | AI23: =VLOOKUP(D23,Paramètres!$A$24:$D$36,2) -> 100 | AK23: 0
A24: 2009 | B24: Bâtiment 11 | D24: A sélectionner dans la liste déroulante | F24: à encoder | G24: à encoder | W24: 0 | X24: 0 | Y24: NA | Z24: NA | AB24: 0 | AC24: =VLOOKUP(D24,Paramètres!$A$24:$D$36,3) -> 100 | AD24: =N24*Paramètres!$C$3+O24*Paramètres!$C$4+Encodage!P24*Paramètres!$C$5+Encodage!Q24*Paramètres!$C$6+R24*Paramètres!$C$7 -> 0 | AE24: =VLOOKUP(D24,Paramètres!$A$24:$E$36,5) -> 0.85 | AF24: =IFERROR(AD24*(1-AE24)+(AD24*AE24*DJ!$D$3/VLOOKUP(Encodage!A24,DJ!$A$3:$D$25,4)),0) -> 0 | AG24: 0 | AI24: =VLOOKUP(D24,Paramètres!$A$24:$D$36,2) -> 100 | AK24: 0
A25: 2009 | B25: Bâtiment 12 | D25: A sélectionner dans la liste déroulante | F25: à encoder | G25: à encoder | W25: 0 | X25: 0 | Y25: NA | Z25: NA | AB25: 0 | AC25: =VLOOKUP(D25,Paramètres!$A$24:$D$36,3) -> 100 | AD25: =N25*Paramètres!$C$3+O25*Paramètres!$C$4+Encodage!P25*Paramètres!$C$5+Encodage!Q25*Paramètres!$C$6+R25*Paramètres!$C$7 -> 0 | AE25: =VLOOKUP(D25,Paramètres!$A$24:$E$36,5) -> 0.85 | AF25: =IFERROR(AD25*(1-AE25)+(AD25*AE25*DJ!$D$3/VLOOKUP(Encodage!A25,DJ!$A$3:$D$25,4)),0) -> 0 | AG25: 0 | AI25: =VLOOKUP(D25,Paramètres!$A$24:$D$36,2) -> 100 | AK25: 0
A26: 2009 | B26: Total | C26: =SUM(C14:C25) -> 0 | H26: =SUM(H14:H25) -> 0 | I26: =SUM(I14:I25) -> 0 | J26: =SUM(J14:J25) -> 0 | K26: =SUM(K14:K25) -> 0 | N26: =SUM(N14:N25) -> 0 | O26: 0 | P26: 0 | Q26: 0 | R26: 0 | S26: 0 | U26: 0 | W26: =SUM(W14:W25) -> 0 | X26: =SUM(X14:X25) -> 0 | AB26: =IFERROR(W26/C26,0) -> 0 | AC26: =VLOOKUP($D$6,Paramètres!$A$24:$D$36,3) -> 0 | AD26: =SUM(AD14:AD25) -> 0 | AF26: =SUM(AF14:AF25) -> 0 | AG26: 0 | AI26: =VLOOKUP($D$6,Paramètres!$A$24:$D$36,2) -> 0
A28: =A13+1 -> 2010
A29: =A28 -> 2010 | B29: =B14 -> Bâtiment 1 | C29: 0 | D29: A sélectionner dans la liste déroulante | E29: =E14 -> 0 | F29: =F14 -> à encoder | G29: =G14 -> à encoder | V29: =IF(T29=0,,T29/T14-1) -> 0 | W29: =SUM(H29:J29) -> 0 | X29: 0 | Y29: =IFERROR((L29-M29)/L29,"NA") -> NA | Z29: =IFERROR(J29/W29,"NA") -> NA | AA29: =IF(X29=0,0,X29/X14-1) -> 0 | AB29: =IFERROR(X29/C29,0) -> 0 | AC29: =VLOOKUP(D29,Paramètres!$A$24:$D$36,3) -> 100 | AD29: =N29*Paramètres!$C$3+O29*Paramètres!$C$4+Encodage!P29*Paramètres!$C$5+Encodage!Q29*Paramètres!$C$6+R29*Paramètres!$C$7 -> 0 | AE29: =VLOOKUP(D29,Paramètres!$A$24:$E$36,5) -> 0.85 | AF29: =IFERROR(AD29*(1-AE29)+(AD29*AE29*DJ!$D$3/VLOOKUP(Encodage!A29,DJ!$A$3:$D$25,4)),0) -> 0 | AG29: =IFERROR(AF29/C29,0) -> 0 | AH29: =IF(AF29=0,,AF29/AF14-1) -> 0 | AI29: =VLOOKUP(D29,Paramètres!$A$24:$D$36,2) -> 100 | AJ29: =IFERROR(AG29/AG$14,"") ->  | AK29: =AF29*AG29 -> 0
A30: =A29 -> 2010 | B30: Bâtiment 2 | C30: 0 | D30: A sélectionner dans la liste déroulante | E30: 0 | F30: =F15 -> à encoder | G30: à encoder | V30: =IF(T30=0,,T30/T15-1) -> 0 | W30: =SUM(H30:J30) -> 0 | X30: =W30+L30-M30 -> 0 | Y30: =IFERROR((L30-M30)/L30,"NA") -> NA | Z30: NA | AA30: =IF(X30=0,0,X30/X30-1) -> 0 | AB30: =IFERROR(X30/C30,0) -> 0 | AC30: =VLOOKUP(D30,Paramètres!$A$24:$D$36,3) -> 100 | AD30: =N30*Paramètres!$C$3+O30*Paramètres!$C$4+Encodage!P30*Paramètres!$C$5+Encodage!Q30*Paramètres!$C$6+R30*Paramètres!$C$7 -> 0 | AE30: =VLOOKUP(D30,Paramètres!$A$24:$E$36,5) -> 0.85 | AF30: =IFERROR(AD30*(1-AE30)+(AD30*AE30*DJ!$D$3/VLOOKUP(Encodage!A30,DJ!$A$3:$D$25,4)),0) -> 0 | AG30: 0 | AH30: =IF(AF30=0,,AF30/AF15-1) -> 0 | AI30: =VLOOKUP(D30,Paramètres!$A$24:$D$36,2) -> 100 | AK30: 0
A31: =A30 -> 2010 | B31: Bâtiment 3 | C31: 0 | D31: A sélectionner dans la liste déroulante | E31: 0 | F31: à encoder | G31: à encoder | V31: =IF(T31=0,,T31/T16-1) -> 0 | W31: 0 | X31: 0 | Y31: NA | Z31: NA | AA31: 0 | AB31: =IFERROR(X31/C31,0) -> 0 | AC31: =VLOOKUP(D31,Paramètres!$A$24:$D$36,3) -> 100 | AD31: =N31*Paramètres!$C$3+O31*Paramètres!$C$4+Encodage!P31*Paramètres!$C$5+Encodage!Q31*Paramètres!$C$6+R31*Paramètres!$C$7 -> 0 | AE31: =VLOOKUP(D31,Paramètres!$A$24:$E$36,5) -> 0.85 | AF31: =IFERROR(AD31*(1-AE31)+(AD31*AE31*DJ!$D$3/VLOOKUP(Encodage!A31,DJ!$A$3:$D$25,4)),0) -> 0 | AG31: 0 | AH31: 0 | AI31: =VLOOKUP(D31,Paramètres!$A$24:$D$36,2) -> 100 | AK31: 0
A32: 2010 | B32: Bâtiment 4 | C32: 0 | D32: A sélectionner dans la liste déroulante | E32: 0 | F32: =F17 -> à encoder | G32: à encoder | V32: 0 | W32: 0 | X32: 0 | Y32: NA | Z32: NA | AA32: 0 | AB32: =IFERROR(X32/C32,0) -> 0 | AC32: =VLOOKUP(D32,Paramètres!$A$24:$D$36,3) -> 100 | AD32: =N32*Paramètres!$C$3+O32*Paramètres!$C$4+Encodage!P32*Paramètres!$C$5+Encodage!Q32*Paramètres!$C$6+R32*Paramètres!$C$7 -> 0 | AE32: =VLOOKUP(D32,Paramètres!$A$24:$E$36,5) -> 0.85 | AF32: =IFERROR(AD32*(1-AE32)+(AD32*AE32*DJ!$D$3/VLOOKUP(Encodage!A32,DJ!$A$3:$D$25,4)),0) -> 0 | AG32: 0 | AH32: 0 | AI32: =VLOOKUP(D32,Paramètres!$A$24:$D$36,2) -> 100 | AK32: 0
A33: 2010 | B33: Bâtiment 5 | C33: 0 | D33: A sélectionner dans la liste déroulante | E33: 0 | F33: à encoder | G33: à encoder | V33: 0 | W33: 0 | X33: 0 | Y33: NA | Z33: NA | AA33: 0 | AB33: 0 | AC33: =VLOOKUP(D33,Paramètres!$A$24:$D$36,3) -> 100 | AD33: =N33*Paramètres!$C$3+O33*Paramètres!$C$4+Encodage!P33*Paramètres!$C$5+Encodage!Q33*Paramètres!$C$6+R33*Paramètres!$C$7 -> 0 | AE33: =VLOOKUP(D33,Paramètres!$A$24:$E$36,5) -> 0.85 | AF33: =IFERROR(AD33*(1-AE33)+(AD33*AE33*DJ!$D$3/VLOOKUP(Encodage!A33,DJ!$A$3:$D$25,4)),0) -> 0 | AG33: 0 | AH33: 0 | AI33: =VLOOKUP(D33,Paramètres!$A$24:$D$36,2) -> 100 | AK33: 0
A34: 2010 | B34: Bâtiment 6 | C34: 0 | D34: A sélectionner dans la liste déroulante | E34: 0 | F34: à encoder | G34: à encoder | V34: 0 | W34: 0 | X34: 0 | Y34: NA | Z34: NA | AA34: 0 | AB34: 0 | AC34: =VLOOKUP(D34,Paramètres!$A$24:$D$36,3) -> 100 | AD34: =N34*Paramètres!$C$3+O34*Paramètres!$C$4+Encodage!P34*Paramètres!$C$5+Encodage!Q34*Paramètres!$C$6+R34*Paramètres!$C$7 -> 0 | AE34: =VLOOKUP(D34,Paramètres!$A$24:$E$36,5) -> 0.85 | AF34: =IFERROR(AD34*(1-AE34)+(AD34*AE34*DJ!$D$3/VLOOKUP(Encodage!A34,DJ!$A$3:$D$25,4)),0) -> 0 | AG34: 0 | AH34: 0 | AI34: =VLOOKUP(D34,Paramètres!$A$24:$D$36,2) -> 100 | AK34: 0
A35: 2010 | B35: Bâtiment 7 | C35: 0 | D35: A sélectionner dans la liste déroulante | E35: 0 | F35: à encoder | G35: à encoder | V35: 0 | W35: 0 | X35: 0 | Y35: NA | Z35: NA | AA35: 0 | AB35: 0 | AC35: =VLOOKUP(D35,Paramètres!$A$24:$D$36,3) -> 100 | AD35: =N35*Paramètres!$C$3+O35*Paramètres!$C$4+Encodage!P35*Paramètres!$C$5+Encodage!Q35*Paramètres!$C$6+R35*Paramètres!$C$7 -> 0 | AE35: =VLOOKUP(D35,Paramètres!$A$24:$E$36,5) -> 0.85 | AF35: =IFERROR(AD35*(1-AE35)+(AD35*AE35*DJ!$D$3/VLOOKUP(Encodage!A35,DJ!$A$3:$D$25,4)),0) -> 0 | AG35: 0 | AH35: 0 | AI35: =VLOOKUP(D35,Paramètres!$A$24:$D$36,2) -> 100 | AK35: 0
A36: 2010 | B36: Bâtiment 8 | C36: 0 | D36: A sélectionner dans la liste déroulante | E36: 0 | F36: à encoder | G36: à encoder | V36: 0 | W36: 0 | X36: 0 | Y36: NA | Z36: NA | AA36: 0 | AB36: 0 | AC36: =VLOOKUP(D36,Paramètres!$A$24:$D$36,3) -> 100 | AD36: =N36*Paramètres!$C$3+O36*Paramètres!$C$4+Encodage!P36*Paramètres!$C$5+Encodage!Q36*Paramètres!$C$6+R36*Paramètres!$C$7 -> 0 | AE36: =VLOOKUP(D36,Paramètres!$A$24:$E$36,5) -> 0.85 | AF36: =IFERROR(AD36*(1-AE36)+(AD36*AE36*DJ!$D$3/VLOOKUP(Encodage!A36,DJ!$A$3:$D$25,4)),0) -> 0 | AG36: 0 | AH36: 0 | AI36: =VLOOKUP(D36,Paramètres!$A$24:$D$36,2) -> 100 | AK36: 0
A37: 2010 | B37: Bâtiment 9 | C37: 0 | D37: A sélectionner dans la liste déroulante | E37: 0 | F37: à encoder | G37: à encoder | V37: 0 | W37: =SUM(H37:J37) -> 0 | X37: 0 | Y37: NA | Z37: NA | AA37: 0 | AB37: 0 | AC37: =VLOOKUP(D37,Paramètres!$A$24:$D$36,3) -> 100 | AD37: =N37*Paramètres!$C$3+O37*Paramètres!$C$4+Encodage!P37*Paramètres!$C$5+Encodage!Q37*Paramètres!$C$6+R37*Paramètres!$C$7 -> 0 | AE37: =VLOOKUP(D37,Paramètres!$A$24:$E$36,5) -> 0.85 | AF37: =IFERROR(AD37*(1-AE37)+(AD37*AE37*DJ!$D$3/VLOOKUP(Encodage!A37,DJ!$A$3:$D$25,4)),0) -> 0 | AG37: 0 | AH37: 0 | AI37: =VLOOKUP(D37,Paramètres!$A$24:$D$36,2) -> 100 | AK37: 0
A38: 2010 | B38: Bâtiment 10 | C38: 0 | D38: A sélectionner dans la liste déroulante | E38: 0 | F38: à encoder | G38: à encoder | V38: 0 | W38: 0 | X38: 0 | Y38: NA | Z38: NA | AA38: 0 | AB38: 0 | AC38: =VLOOKUP(D38,Paramètres!$A$24:$D$36,3) -> 100 | AD38: =N38*Paramètres!$C$3+O38*Paramètres!$C$4+Encodage!P38*Paramètres!$C$5+Encodage!Q38*Paramètres!$C$6+R38*Paramètres!$C$7 -> 0 | AE38: =VLOOKUP(D38,Paramètres!$A$24:$E$36,5) -> 0.85 | AF38: =IFERROR(AD38*(1-AE38)+(AD38*AE38*DJ!$D$3/VLOOKUP(Encodage!A38,DJ!$A$3:$D$25,4)),0) -> 0 | AG38: 0 | AH38: 0 | AI38: =VLOOKUP(D38,Paramètres!$A$24:$D$36,2) -> 100 | AK38: 0
A39: 2010 | B39: Bâtiment 11 | C39: 0 | D39: A sélectionner dans la liste déroulante | E39: 0 | F39: à encoder | G39: à encoder | V39: 0 | W39: 0 | X39: 0 | Y39: NA | Z39: NA | AA39: 0 | AB39: =IFERROR(X39/C39,0) -> 0 | AC39: =VLOOKUP(D39,Paramètres!$A$24:$D$36,3) -> 100 | AD39: =N39*Paramètres!$C$3+O39*Paramètres!$C$4+Encodage!P39*Paramètres!$C$5+Encodage!Q39*Paramètres!$C$6+R39*Paramètres!$C$7 -> 0 | AE39: =VLOOKUP(D39,Paramètres!$A$24:$E$36,5) -> 0.85 | AF39: =IFERROR(AD39*(1-AE39)+(AD39*AE39*DJ!$D$3/VLOOKUP(Encodage!A39,DJ!$A$3:$D$25,4)),0) -> 0 | AG39: 0 | AH39: 0 | AI39: =VLOOKUP(D39,Paramètres!$A$24:$D$36,2) -> 100 | AK39: 0
A40: 2010 | B40: Bâtiment 12 | C40: 0 | D40: A sélectionner dans la liste déroulante | E40: 0 | F40: à encoder | G40: à encoder | V40: 0 | W40: 0 | X40: 0 | Y40: NA | Z40: NA | AA40: 0 | AB40: 0 | AC40: =VLOOKUP(D40,Paramètres!$A$24:$D$36,3) -> 100 | AD40: =N40*Paramètres!$C$3+O40*Paramètres!$C$4+Encodage!P40*Paramètres!$C$5+Encodage!Q40*Paramètres!$C$6+R40*Paramètres!$C$7 -> 0 | AE40: =VLOOKUP(D40,Paramètres!$A$24:$E$36,5) -> 0.85 | AF40: =IFERROR(AD40*(1-AE40)+(AD40*AE40*DJ!$D$3/VLOOKUP(Encodage!A40,DJ!$A$3:$D$25,4)),0) -> 0 | AG40: 0 | AH40: 0 | AI40: =VLOOKUP(D40,Paramètres!$A$24:$D$36,2) -> 100 | AK40: 0
A41: 2010 | B41: Total | C41: =SUM(C29:C40) -> 0 | H41: =SUM(H29:H40) -> 0 | I41: =SUM(I29:I40) -> 0 | J41: 0 | K41: 0 | N41: 0 | O41: 0 | P41: 0 | Q41: 0 | R41: 0 | S41: 0 | T41: 0 | U41: =SUM(U29:U40) -> 0 | W41: =SUM(W29:W40) -> 0 | X41: =SUM(X29:X40) -> 0 | AB41: =IFERROR(W41/C41,0) -> 0 | AC41: =VLOOKUP($D$6,Paramètres!$A$24:$D$36,3) -> 0 | AD41: =SUM(AD29:AD40) -> 0 | AF41: =SUM(AF29:AF40) -> 0 | AG41: 0 | AI41: =VLOOKUP($D$6,Paramètres!$A$24:$D$36,2) -> 0
A43: =A28+1 -> 2011
A44: =A43 -> 2011 | B44: =B29 -> Bâtiment 1 | C44: 0 | D44: A sélectionner dans la liste déroulante | E44: 0 | F44: à encoder | G44: à encoder | V44: =IF(T44=0,,T44/T29-1) -> 0 | W44: =SUM(H44:J44) -> 0 | X44: =W44+L44-M44 -> 0 | Y44: =IFERROR((L44-M44)/L44,"NA") -> NA | Z44: =IFERROR(J44/W44,"NA") -> NA | AA44: =IF(X44=0,0,X44/X44-1) -> 0 | AB44: =IFERROR(X44/C44,0) -> 0 | AC44: =VLOOKUP(D44,Paramètres!$A$24:$D$36,3) -> 100 | AD44: =N44*Paramètres!$C$3+O44*Paramètres!$C$4+Encodage!P44*Paramètres!$C$5+Encodage!Q44*Paramètres!$C$6+R44*Paramètres!$C$7 -> 0 | AE44: =VLOOKUP(D44,Paramètres!$A$24:$E$36,5) -> 0.85 | AF44: =IFERROR(AD44*(1-AE44)+(AD44*AE44*DJ!$D$3/VLOOKUP(Encodage!A44,DJ!$A$3:$D$25,4)),0) -> 0 | AG44: =IFERROR(AF44/C44,0) -> 0 | AH44: =IF(AF44=0,,AF44/AF29-1) -> 0 | AI44: =VLOOKUP(D44,Paramètres!$A$24:$D$36,2) -> 100 | AJ44: =IFERROR(AG44/AG$14,"") ->  | AK44: =AF44*AG44 -> 0
A45: =A44 -> 2011 | B45: Bâtiment 2 | C45: 0 | D45: A sélectionner dans la liste déroulante | E45: 0 | F45: à encoder | G45: à encoder | V45: =IF(T45=0,,T45/T30-1) -> 0 | W45: =SUM(H45:J45) -> 0 | X45: =W45+L45-M45 -> 0 | Y45: =IFERROR((L45-M45)/L45,"NA") -> NA | Z45: NA | AA45: =IF(X45=0,0,X45/X45-1) -> 0 | AB45: =IFERROR(X45/C45,0) -> 0 | AC45: =VLOOKUP(D45,Paramètres!$A$24:$D$36,3) -> 100 | AD45: =N45*Paramètres!$C$3+O45*Paramètres!$C$4+Encodage!P45*Paramètres!$C$5+Encodage!Q45*Paramètres!$C$6+R45*Paramètres!$C$7 -> 0 | AE45: =VLOOKUP(D45,Paramètres!$A$24:$E$36,5) -> 0.85 | AF45: =IFERROR(AD45*(1-AE45)+(AD45*AE45*DJ!$D$3/VLOOKUP(Encodage!A45,DJ!$A$3:$D$25,4)),0) -> 0 | AG45: 0 | AH45: =IF(AF45=0,,AF45/AF30-1) -> 0 | AI45: =VLOOKUP(D45,Paramètres!$A$24:$D$36,2) -> 100 | AK45: 0
A46: =A45 -> 2011 | B46: Bâtiment 3 | C46: 0 | D46: A sélectionner dans la liste déroulante | E46: 0 | F46: à encoder | G46: à encoder | V46: 0 | W46: 0 | X46: 0 | Y46: NA | Z46: NA | AA46: 0 | AB46: 0 | AC46: =VLOOKUP(D46,Paramètres!$A$24:$D$36,3) -> 100 | AD46: =N46*Paramètres!$C$3+O46*Paramètres!$C$4+Encodage!P46*Paramètres!$C$5+Encodage!Q46*Paramètres!$C$6+R46*Paramètres!$C$7 -> 0 | AE46: =VLOOKUP(D46,Paramètres!$A$24:$E$36,5) -> 0.85 | AF46: =IFERROR(AD46*(1-AE46)+(AD46*AE46*DJ!$D$3/VLOOKUP(Encodage!A46,DJ!$A$3:$D$25,4)),0) -> 0 | AG46: 0 | AH46: 0 | AI46: =VLOOKUP(D46,Paramètres!$A$24:$D$36,2) -> 100 | AK46: 0
A47: 2011 | B47: Bâtiment 4 | C47: 0 | D47: A sélectionner dans la liste déroulante | E47: 0 | F47: =F32 -> à encoder | G47: à encoder | V47: 0 | W47: 0 | X47: 0 | Y47: NA | Z47: NA | AA47: 0 | AB47: =IFERROR(X47/C47,0) -> 0 | AC47: =VLOOKUP(D47,Paramètres!$A$24:$D$36,3) -> 100 | AD47: =N47*Paramètres!$C$3+O47*Paramètres!$C$4+Encodage!P47*Paramètres!$C$5+Encodage!Q47*Paramètres!$C$6+R47*Paramètres!$C$7 -> 0 | AE47: =VLOOKUP(D47,Paramètres!$A$24:$E$36,5) -> 0.85 | AF47: =IFERROR(AD47*(1-AE47)+(AD47*AE47*DJ!$D$3/VLOOKUP(Encodage!A47,DJ!$A$3:$D$25,4)),0) -> 0 | AG47: 0 | AH47: 0 | AI47: =VLOOKUP(D47,Paramètres!$A$24:$D$36,2) -> 100 | AK47: 0
A48: 2011 | B48: Bâtiment 5 | C48: 0 | D48: A sélectionner dans la liste déroulante | E48: 0 | F48: à encoder | G48: à encoder | V48: 0 | W48: 0 | X48: 0 | Y48: NA | Z48: NA | AA48: =IF(X48=0,0,X48/X48-1) -> 0 | AB48: 0 | AC48: =VLOOKUP(D48,Paramètres!$A$24:$D$36,3) -> 100 | AD48: =N48*Paramètres!$C$3+O48*Paramètres!$C$4+Encodage!P48*Paramètres!$C$5+Encodage!Q48*Paramètres!$C$6+R48*Paramètres!$C$7 -> 0 | AE48: =VLOOKUP(D48,Paramètres!$A$24:$E$36,5) -> 0.85 | AF48: =IFERROR(AD48*(1-AE48)+(AD48*AE48*DJ!$D$3/VLOOKUP(Encodage!A48,DJ!$A$3:$D$25,4)),0) -> 0 | AG48: 0 | AH48: 0 | AI48: =VLOOKUP(D48,Paramètres!$A$24:$D$36,2) -> 100 | AK48: 0
A49: 2011 | B49: Bâtiment 6 | C49: 0 | D49: A sélectionner dans la liste déroulante | E49: 0 | F49: à encoder | G49: à encoder | V49: 0 | W49: 0 | X49: 0 | Y49: NA | Z49: NA | AA49: 0 | AB49: 0 | AC49: =VLOOKUP(D49,Paramètres!$A$24:$D$36,3) -> 100 | AD49: =N49*Paramètres!$C$3+O49*Paramètres!$C$4+Encodage!P49*Paramètres!$C$5+Encodage!Q49*Paramètres!$C$6+R49*Paramètres!$C$7 -> 0 | AE49: =VLOOKUP(D49,Paramètres!$A$24:$E$36,5) -> 0.85 | AF49: =IFERROR(AD49*(1-AE49)+(AD49*AE49*DJ!$D$3/VLOOKUP(Encodage!A49,DJ!$A$3:$D$25,4)),0) -> 0 | AG49: 0 | AH49: 0 | AI49: =VLOOKUP(D49,Paramètres!$A$24:$D$36,2) -> 100 | AK49: 0
A50: 2011 | B50: Bâtiment 7 | C50: 0 | D50: A sélectionner dans la liste déroulante | E50: 0 | F50: à encoder | G50: à encoder | V50: 0 | W50: 0 | X50: 0 | Y50: NA | Z50: NA | AA50: 0 | AB50: 0 | AC50: =VLOOKUP(D50,Paramètres!$A$24:$D$36,3) -> 100 | AD50: =N50*Paramètres!$C$3+O50*Paramètres!$C$4+Encodage!P50*Paramètres!$C$5+Encodage!Q50*Paramètres!$C$6+R50*Paramètres!$C$7 -> 0 | AE50: =VLOOKUP(D50,Paramètres!$A$24:$E$36,5) -> 0.85 | AF50: =IFERROR(AD50*(1-AE50)+(AD50*AE50*DJ!$D$3/VLOOKUP(Encodage!A50,DJ!$A$3:$D$25,4)),0) -> 0 | AG50: 0 | AH50: 0 | AI50: =VLOOKUP(D50,Paramètres!$A$24:$D$36,2) -> 100 | AK50: 0
A51: 2011 | B51: Bâtiment 8 | C51: 0 | D51: A sélectionner dans la liste déroulante | E51: 0 | F51: à encoder | G51: à encoder | V51: 0 | W51: 0 | X51: 0 | Y51: NA | Z51: NA | AA51: 0 | AB51: 0 | AC51: =VLOOKUP(D51,Paramètres!$A$24:$D$36,3) -> 100 | AD51: =N51*Paramètres!$C$3+O51*Paramètres!$C$4+Encodage!P51*Paramètres!$C$5+Encodage!Q51*Paramètres!$C$6+R51*Paramètres!$C$7 -> 0 | AE51: =VLOOKUP(D51,Paramètres!$A$24:$E$36,5) -> 0.85 | AF51: =IFERROR(AD51*(1-AE51)+(AD51*AE51*DJ!$D$3/VLOOKUP(Encodage!A51,DJ!$A$3:$D$25,4)),0) -> 0 | AG51: 0 | AH51: 0 | AI51: =VLOOKUP(D51,Paramètres!$A$24:$D$36,2) -> 100 | AK51: 0
A52: 2011 | B52: Bâtiment 9 | C52: 0 | D52: A sélectionner dans la liste déroulante | E52: 0 | F52: à encoder | G52: à encoder | V52: 0 | W52: =SUM(H52:J52) -> 0 | X52: 0 | Y52: NA | Z52: NA | AA52: 0 | AB52: 0 | AC52: =VLOOKUP(D52,Paramètres!$A$24:$D$36,3) -> 100 | AD52: =N52*Paramètres!$C$3+O52*Paramètres!$C$4+Encodage!P52*Paramètres!$C$5+Encodage!Q52*Paramètres!$C$6+R52*Paramètres!$C$7 -> 0 | AE52: =VLOOKUP(D52,Paramètres!$A$24:$E$36,5) -> 0.85 | AF52: =IFERROR(AD52*(1-AE52)+(AD52*AE52*DJ!$D$3/VLOOKUP(Encodage!A52,DJ!$A$3:$D$25,4)),0) -> 0 | AG52: 0 | AH52: 0 | AI52: =VLOOKUP(D52,Paramètres!$A$24:$D$36,2) -> 100 | AK52: 0
A53: 2011 | B53: Bâtiment 10 | C53: 0 | D53: A sélectionner dans la liste déroulante | E53: 0 | F53: à encoder | G53: à encoder | V53: 0 | W53: 0 | X53: 0 | Y53: NA | Z53: NA | AA53: 0 | AB53: 0 | AC53: =VLOOKUP(D53,Paramètres!$A$24:$D$36,3) -> 100 | AD53: =N53*Paramètres!$C$3+O53*Paramètres!$C$4+Encodage!P53*Paramètres!$C$5+Encodage!Q53*Paramètres!$C$6+R53*Paramètres!$C$7 -> 0 | AE53: =VLOOKUP(D53,Paramètres!$A$24:$E$36,5) -> 0.85 | AF53: =IFERROR(AD53*(1-AE53)+(AD53*AE53*DJ!$D$3/VLOOKUP(Encodage!A53,DJ!$A$3:$D$25,4)),0) -> 0 | AG53: 0 | AH53: 0 | AI53: =VLOOKUP(D53,Paramètres!$A$24:$D$36,2) -> 100 | AK53: 0
A54: 2011 | B54: Bâtiment 11 | C54: 0 | D54: A sélectionner dans la liste déroulante | E54: 0 | F54: à encoder | G54: à encoder | V54: 0 | W54: 0 | X54: 0 | Y54: NA | Z54: NA | AA54: 0 | AB54: =IFERROR(X54/C54,0) -> 0 | AC54: =VLOOKUP(D54,Paramètres!$A$24:$D$36,3) -> 100 | AD54: =N54*Paramètres!$C$3+O54*Paramètres!$C$4+Encodage!P54*Paramètres!$C$5+Encodage!Q54*Paramètres!$C$6+R54*Paramètres!$C$7 -> 0 | AE54: =VLOOKUP(D54,Paramètres!$A$24:$E$36,5) -> 0.85 | AF54: =IFERROR(AD54*(1-AE54)+(AD54*AE54*DJ!$D$3/VLOOKUP(Encodage!A54,DJ!$A$3:$D$25,4)),0) -> 0 | AG54: 0 | AH54: 0 | AI54: =VLOOKUP(D54,Paramètres!$A$24:$D$36,2) -> 100 | AK54: 0
A55: 2011 | B55: Bâtiment 12 | C55: 0 | D55: A sélectionner dans la liste déroulante | E55: 0 | F55: à encoder | G55: à encoder | V55: 0 | W55: 0 | X55: 0 | Y55: NA | Z55: NA | AA55: 0 | AB55: 0 | AC55: =VLOOKUP(D55,Paramètres!$A$24:$D$36,3) -> 100 | AD55: =N55*Paramètres!$C$3+O55*Paramètres!$C$4+Encodage!P55*Paramètres!$C$5+Encodage!Q55*Paramètres!$C$6+R55*Paramètres!$C$7 -> 0 | AE55: =VLOOKUP(D55,Paramètres!$A$24:$E$36,5) -> 0.85 | AF55: =IFERROR(AD55*(1-AE55)+(AD55*AE55*DJ!$D$3/VLOOKUP(Encodage!A55,DJ!$A$3:$D$25,4)),0) -> 0 | AG55: 0 | AH55: 0 | AI55: =VLOOKUP(D55,Paramètres!$A$24:$D$36,2) -> 100 | AK55: 0
A56: 2011 | B56: Total | C56: =SUM(C44:C55) -> 0 | H56: =SUM(H44:H55) -> 0 | I56: =SUM(I44:I55) -> 0 | J56: =SUM(J44:J55) -> 0 | K56: =SUM(K44:K55) -> 0 | L56: =SUM(L44:L55) -> 0 | M56: =SUM(M44:M55) -> 0 | N56: =SUM(N44:N55) -> 0 | O56: 0 | P56: 0 | Q56: 0 | R56: 0 | S56: 0 | T56: 0 | U56: 0 | W56: =SUM(W44:W55) -> 0 | X56: =SUM(X44:X55) -> 0 | AB56: =IFERROR(W56/C56,0) -> 0 | AC56: =VLOOKUP($D$6,Paramètres!$A$24:$D$36,3) -> 0 | AD56: =SUM(AD44:AD55) -> 0 | AF56: =SUM(AF44:AF55) -> 0 | AG56: 0 | AI56: =VLOOKUP($D$6,Paramètres!$A$24:$D$36,2) -> 0
A58: =A43+1 -> 2012
A59: =A58 -> 2012 | B59: =B44 -> Bâtiment 1 | C59: 0 | D59: A sélectionner dans la liste déroulante | E59: 0 | F59: =F44 -> à encoder | G59: =G44 -> à encoder | V59: =IF(T59=0,,T59/T44-1) -> 0 | W59: =SUM(H59:J59) -> 0 | X59: =W59+L59-M59 -> 0 | Y59: =IFERROR((L59-M59)/L59,"NA") -> NA | Z59: =IFERROR(J59/W59,"NA") -> NA | AA59: =IF(X59=0,0,X59/X59-1) -> 0 | AB59: =IFERROR(X59/C59,0) -> 0 | AC59: =VLOOKUP(D59,Paramètres!$A$24:$D$36,3) -> 100 | AD59: =N59*Paramètres!$C$3+O59*Paramètres!$C$4+Encodage!P59*Paramètres!$C$5+Encodage!Q59*Paramètres!$C$6+R59*Paramètres!$C$7 -> 0 | AE59: =VLOOKUP(D59,Paramètres!$A$24:$E$36,5) -> 0.85 | AF59: =IFERROR(AD59*(1-AE59)+(AD59*AE59*DJ!$D$3/VLOOKUP(Encodage!A59,DJ!$A$3:$D$25,4)),0) -> 0 | AG59: =IFERROR(AF59/C59,0) -> 0 | AH59: =IF(AF59=0,,AF59/AF44-1) -> 0 | AI59: =VLOOKUP(D59,Paramètres!$A$24:$D$36,2) -> 100 | AJ59: =IFERROR(AG59/AG$14,"") ->  | AK59: =AF59*AG59 -> 0
A60: =A59 -> 2012 | B60: Bâtiment 2 | C60: 0 | D60: A sélectionner dans la liste déroulante | E60: 0 | F60: à encoder | G60: à encoder | V60: =IF(T60=0,,T60/T45-1) -> 0 | W60: =SUM(H60:J60) -> 0 | X60: =W60+L60-M60 -> 0 | Y60: =IFERROR((L60-M60)/L60,"NA") -> NA | Z60: NA | AA60: =IF(X60=0,0,X60/X60-1) -> 0 | AB60: =IFERROR(X60/C60,0) -> 0 | AC60: =VLOOKUP(D60,Paramètres!$A$24:$D$36,3) -> 100 | AD60: =N60*Paramètres!$C$3+O60*Paramètres!$C$4+Encodage!P60*Paramètres!$C$5+Encodage!Q60*Paramètres!$C$6+R60*Paramètres!$C$7 -> 0 | AE60: =VLOOKUP(D60,Paramètres!$A$24:$E$36,5) -> 0.85 | AF60: =IFERROR(AD60*(1-AE60)+(AD60*AE60*DJ!$D$3/VLOOKUP(Encodage!A60,DJ!$A$3:$D$25,4)),0) -> 0 | AG60: 0 | AH60: =IF(AF60=0,,AF60/AF45-1) -> 0 | AI60: =VLOOKUP(D60,Paramètres!$A$24:$D$36,2) -> 100 | AK60: 0
A61: =A60 -> 2012 | B61: Bâtiment 3 | C61: 0 | D61: A sélectionner dans la liste déroulante | E61: 0 | F61: à encoder | G61: à encoder | V61: 0 | W61: 0 | X61: 0 | Y61: NA | Z61: NA | AA61: 0 | AB61: 0 | AC61: =VLOOKUP(D61,Paramètres!$A$24:$D$36,3) -> 100 | AD61: =N61*Paramètres!$C$3+O61*Paramètres!$C$4+Encodage!P61*Paramètres!$C$5+Encodage!Q61*Paramètres!$C$6+R61*Paramètres!$C$7 -> 0 | AE61: =VLOOKUP(D61,Paramètres!$A$24:$E$36,5) -> 0.85 | AF61: =IFERROR(AD61*(1-AE61)+(AD61*AE61*DJ!$D$3/VLOOKUP(Encodage!A61,DJ!$A$3:$D$25,4)),0) -> 0 | AG61: 0 | AH61: 0 | AI61: =VLOOKUP(D61,Paramètres!$A$24:$D$36,2) -> 100 | AK61: 0
A62: 2012 | B62: Bâtiment 4 | C62: 0 | D62: A sélectionner dans la liste déroulante | E62: 0 | F62: à encoder | G62: à encoder | V62: 0 | W62: 0 | X62: 0 | Y62: NA | Z62: NA | AA62: 0 | AB62: =IFERROR(X62/C62,0) -> 0 | AC62: =VLOOKUP(D62,Paramètres!$A$24:$D$36,3) -> 100 | AD62: =N62*Paramètres!$C$3+O62*Paramètres!$C$4+Encodage!P62*Paramètres!$C$5+Encodage!Q62*Paramètres!$C$6+R62*Paramètres!$C$7 -> 0 | AE62: =VLOOKUP(D62,Paramètres!$A$24:$E$36,5) -> 0.85 | AF62: =IFERROR(AD62*(1-AE62)+(AD62*AE62*DJ!$D$3/VLOOKUP(Encodage!A62,DJ!$A$3:$D$25,4)),0) -> 0 | AG62: 0 | AH62: 0 | AI62: =VLOOKUP(D62,Paramètres!$A$24:$D$36,2) -> 100 | AK62: 0
A63: 2012 | B63: Bâtiment 5 | C63: 0 | D63: A sélectionner dans la liste déroulante | E63: 0 | F63: à encoder | G63: à encoder | V63: 0 | W63: 0 | X63: 0 | Y63: NA | Z63: NA | AA63: =IF(X63=0,0,X63/X63-1) -> 0 | AB63: 0 | AC63: =VLOOKUP(D63,Paramètres!$A$24:$D$36,3) -> 100 | AD63: =N63*Paramètres!$C$3+O63*Paramètres!$C$4+Encodage!P63*Paramètres!$C$5+Encodage!Q63*Paramètres!$C$6+R63*Paramètres!$C$7 -> 0 | AE63: =VLOOKUP(D63,Paramètres!$A$24:$E$36,5) -> 0.85 | AF63: =IFERROR(AD63*(1-AE63)+(AD63*AE63*DJ!$D$3/VLOOKUP(Encodage!A63,DJ!$A$3:$D$25,4)),0) -> 0 | AG63: 0 | AH63: 0 | AI63: =VLOOKUP(D63,Paramètres!$A$24:$D$36,2) -> 100 | AK63: 0
A64: 2012 | B64: Bâtiment 6 | C64: 0 | D64: A sélectionner dans la liste déroulante | E64: 0 | F64: à encoder | G64: à encoder | V64: 0 | W64: 0 | X64: 0 | Y64: NA | Z64: NA | AA64: 0 | AB64: 0 | AC64: =VLOOKUP(D64,Paramètres!$A$24:$D$36,3) -> 100 | AD64: =N64*Paramètres!$C$3+O64*Paramètres!$C$4+Encodage!P64*Paramètres!$C$5+Encodage!Q64*Paramètres!$C$6+R64*Paramètres!$C$7 -> 0 | AE64: =VLOOKUP(D64,Paramètres!$A$24:$E$36,5) -> 0.85 | AF64: =IFERROR(AD64*(1-AE64)+(AD64*AE64*DJ!$D$3/VLOOKUP(Encodage!A64,DJ!$A$3:$D$25,4)),0) -> 0 | AG64: 0 | AH64: 0 | AI64: =VLOOKUP(D64,Paramètres!$A$24:$D$36,2) -> 100 | AK64: 0
A65: 2012 | B65: Bâtiment 7 | C65: 0 | D65: A sélectionner dans la liste déroulante | E65: 0 | F65: à encoder | G65: à encoder | V65: 0 | W65: 0 | X65: 0 | Y65: NA | Z65: NA | AA65: 0 | AB65: 0 | AC65: =VLOOKUP(D65,Paramètres!$A$24:$D$36,3) -> 100 | AD65: =N65*Paramètres!$C$3+O65*Paramètres!$C$4+Encodage!P65*Paramètres!$C$5+Encodage!Q65*Paramètres!$C$6+R65*Paramètres!$C$7 -> 0 | AE65: =VLOOKUP(D65,Paramètres!$A$24:$E$36,5) -> 0.85 | AF65: =IFERROR(AD65*(1-AE65)+(AD65*AE65*DJ!$D$3/VLOOKUP(Encodage!A65,DJ!$A$3:$D$25,4)),0) -> 0 | AG65: 0 | AH65: 0 | AI65: =VLOOKUP(D65,Paramètres!$A$24:$D$36,2) -> 100 | AK65: 0
A66: 2012 | B66: Bâtiment 8 | C66: 0 | D66: A sélectionner dans la liste déroulante | E66: 0 | F66: à encoder | G66: à encoder | V66: 0 | W66: 0 | X66: 0 | Y66: NA | Z66: NA | AA66: 0 | AB66: 0 | AC66: =VLOOKUP(D66,Paramètres!$A$24:$D$36,3) -> 100 | AD66: =N66*Paramètres!$C$3+O66*Paramètres!$C$4+Encodage!P66*Paramètres!$C$5+Encodage!Q66*Paramètres!$C$6+R66*Paramètres!$C$7 -> 0 | AE66: =VLOOKUP(D66,Paramètres!$A$24:$E$36,5) -> 0.85 | AF66: =IFERROR(AD66*(1-AE66)+(AD66*AE66*DJ!$D$3/VLOOKUP(Encodage!A66,DJ!$A$3:$D$25,4)),0) -> 0 | AG66: 0 | AH66: 0 | AI66: =VLOOKUP(D66,Paramètres!$A$24:$D$36,2) -> 100 | AK66: 0
A67: 2012 | B67: Bâtiment 9 | C67: 0 | D67: A sélectionner dans la liste déroulante | E67: 0 | F67: à encoder | G67: à encoder | V67: 0 | W67: =SUM(H67:J67) -> 0 | X67: 0 | Y67: NA | Z67: NA | AA67: 0 | AB67: 0 | AC67: =VLOOKUP(D67,Paramètres!$A$24:$D$36,3) -> 100 | AD67: =N67*Paramètres!$C$3+O67*Paramètres!$C$4+Encodage!P67*Paramètres!$C$5+Encodage!Q67*Paramètres!$C$6+R67*Paramètres!$C$7 -> 0 | AE67: =VLOOKUP(D67,Paramètres!$A$24:$E$36,5) -> 0.85 | AF67: =IFERROR(AD67*(1-AE67)+(AD67*AE67*DJ!$D$3/VLOOKUP(Encodage!A67,DJ!$A$3:$D$25,4)),0) -> 0 | AG67: 0 | AH67: 0 | AI67: =VLOOKUP(D67,Paramètres!$A$24:$D$36,2) -> 100 | AK67: 0
A68: 2012 | B68: Bâtiment 10 | C68: 0 | D68: A sélectionner dans la liste déroulante | E68: 0 | F68: à encoder | G68: à encoder | V68: 0 | W68: 0 | X68: 0 | Y68: NA | Z68: NA | AA68: 0 | AB68: 0 | AC68: =VLOOKUP(D68,Paramètres!$A$24:$D$36,3) -> 100 | AD68: =N68*Paramètres!$C$3+O68*Paramètres!$C$4+Encodage!P68*Paramètres!$C$5+Encodage!Q68*Paramètres!$C$6+R68*Paramètres!$C$7 -> 0 | AE68: =VLOOKUP(D68,Paramètres!$A$24:$E$36,5) -> 0.85 | AF68: =IFERROR(AD68*(1-AE68)+(AD68*AE68*DJ!$D$3/VLOOKUP(Encodage!A68,DJ!$A$3:$D$25,4)),0) -> 0 | AG68: 0 | AH68: 0 | AI68: =VLOOKUP(D68,Paramètres!$A$24:$D$36,2) -> 100 | AK68: 0
A69: 2012 | B69: Bâtiment 11 | C69: 0 | D69: A sélectionner dans la liste déroulante | E69: 0 | F69: à encoder | G69: à encoder | V69: 0 | W69: 0 | X69: 0 | Y69: NA | Z69: NA | AA69: 0 | AB69: =IFERROR(X69/C69,0) -> 0 | AC69: =VLOOKUP(D69,Paramètres!$A$24:$D$36,3) -> 100 | AD69: =N69*Paramètres!$C$3+O69*Paramètres!$C$4+Encodage!P69*Paramètres!$C$5+Encodage!Q69*Paramètres!$C$6+R69*Paramètres!$C$7 -> 0 | AE69: =VLOOKUP(D69,Paramètres!$A$24:$E$36,5) -> 0.85 | AF69: =IFERROR(AD69*(1-AE69)+(AD69*AE69*DJ!$D$3/VLOOKUP(Encodage!A69,DJ!$A$3:$D$25,4)),0) -> 0 | AG69: 0 | AH69: 0 | AI69: =VLOOKUP(D69,Paramètres!$A$24:$D$36,2) -> 100 | AK69: 0
A70: 2012 | B70: Bâtiment 12 | C70: 0 | D70: A sélectionner dans la liste déroulante | E70: 0 | F70: à encoder | G70: à encoder | V70: 0 | W70: 0 | X70: 0 | Y70: NA | Z70: NA | AA70: 0 | AB70: 0 | AC70: =VLOOKUP(D70,Paramètres!$A$24:$D$36,3) -> 100 | AD70: =N70*Paramètres!$C$3+O70*Paramètres!$C$4+Encodage!P70*Paramètres!$C$5+Encodage!Q70*Paramètres!$C$6+R70*Paramètres!$C$7 -> 0 | AE70: =VLOOKUP(D70,Paramètres!$A$24:$E$36,5) -> 0.85 | AF70: =IFERROR(AD70*(1-AE70)+(AD70*AE70*DJ!$D$3/VLOOKUP(Encodage!A70,DJ!$A$3:$D$25,4)),0) -> 0 | AG70: 0 | AH70: 0 | AI70: =VLOOKUP(D70,Paramètres!$A$24:$D$36,2) -> 100 | AK70: 0
A71: 2012 | B71: Total | C71: =SUM(C59:C70) -> 0 | H71: =SUM(H59:H70) -> 0 | I71: =SUM(I59:I70) -> 0 | J71: =SUM(J59:J70) -> 0 | K71: =SUM(K59:K70) -> 0 | L71: =SUM(L59:L70) -> 0 | M71: =SUM(M59:M70) -> 0 | N71: =SUM(N59:N70) -> 0 | O71: 0 | P71: 0 | Q71: 0 | R71: 0 | S71: 0 | T71: 0 | U71: 0 | W71: =SUM(W59:W70) -> 0 | X71: =SUM(X59:X70) -> 0 | AB71: =IFERROR(W71/C71,0) -> 0 | AC71: =VLOOKUP($D$6,Paramètres!$A$24:$D$36,3) -> 0 | AD71: =SUM(AD59:AD70) -> 0 | AF71: =SUM(AF59:AF70) -> 0 | AG71: 0 | AI71: =VLOOKUP($D$6,Paramètres!$A$24:$D$36,2) -> 0
A73: =A58+1 -> 2013
A74: =A73 -> 2013 | B74: =B59 -> Bâtiment 1 | C74: 0 | D74: A sélectionner dans la liste déroulante | E74: 0 | F74: =F59 -> à encoder | G74: =G59 -> à encoder | V74: =IF(T74=0,,T74/T59-1) -> 0 | W74: =SUM(H74:J74) -> 0 | X74: =W74+L74-M74 -> 0 | Y74: =IFERROR((L74-M74)/L74,"NA") -> NA | Z74: =IFERROR(J74/W74,"NA") -> NA | AA74: =IF(X74=0,0,X74/X74-1) -> 0 | AB74: =IFERROR(X74/C74,0) -> 0 | AC74: =VLOOKUP(D74,Paramètres!$A$24:$D$36,3) -> 100 | AD74: =N74*Paramètres!$C$3+O74*Paramètres!$C$4+Encodage!P74*Paramètres!$C$5+Encodage!Q74*Paramètres!$C$6+R74*Paramètres!$C$7 -> 0 | AE74: =VLOOKUP(D74,Paramètres!$A$24:$E$36,5) -> 0.85 | AF74: =IFERROR(AD74*(1-AE74)+(AD74*AE74*DJ!$D$3/VLOOKUP(Encodage!A74,DJ!$A$3:$D$25,4)),0) -> 0 | AG74: =IFERROR(AF74/C74,0) -> 0 | AH74: =IF(AF74=0,,AF74/AF59-1) -> 0 | AI74: =VLOOKUP(D74,Paramètres!$A$24:$D$36,2) -> 100 | AJ74: =IFERROR(AG74/AG$14,"") ->  | AK74: =AF74*AG74 -> 0
A75: =A74 -> 2013 | B75: Bâtiment 2 | C75: 0 | D75: A sélectionner dans la liste déroulante | E75: 0 | F75: à encoder | G75: à encoder | V75: =IF(T75=0,,T75/T60-1) -> 0 | W75: =SUM(H75:J75) -> 0 | X75: =W75+L75-M75 -> 0 | Y75: =IFERROR((L75-M75)/L75,"NA") -> NA | Z75: NA | AA75: =IF(X75=0,0,X75/X75-1) -> 0 | AB75: =IFERROR(X75/C75,0) -> 0 | AC75: =VLOOKUP(D75,Paramètres!$A$24:$D$36,3) -> 100 | AD75: =N75*Paramètres!$C$3+O75*Paramètres!$C$4+Encodage!P75*Paramètres!$C$5+Encodage!Q75*Paramètres!$C$6+R75*Paramètres!$C$7 -> 0 | AE75: =VLOOKUP(D75,Paramètres!$A$24:$E$36,5) -> 0.85 | AF75: =IFERROR(AD75*(1-AE75)+(AD75*AE75*DJ!$D$3/VLOOKUP(Encodage!A75,DJ!$A$3:$D$25,4)),0) -> 0 | AG75: 0 | AH75: =IF(AF75=0,,AF75/AF60-1) -> 0 | AI75: =VLOOKUP(D75,Paramètres!$A$24:$D$36,2) -> 100 | AK75: 0
A76: =A75 -> 2013 | B76: Bâtiment 3 | C76: 0 | D76: A sélectionner dans la liste déroulante | E76: 0 | F76: à encoder | G76: à encoder | V76: 0 | W76: 0 | X76: 0 | Y76: NA | Z76: NA | AA76: 0 | AB76: 0 | AC76: =VLOOKUP(D76,Paramètres!$A$24:$D$36,3) -> 100 | AD76: =N76*Paramètres!$C$3+O76*Paramètres!$C$4+Encodage!P76*Paramètres!$C$5+Encodage!Q76*Paramètres!$C$6+R76*Paramètres!$C$7 -> 0 | AE76: =VLOOKUP(D76,Paramètres!$A$24:$E$36,5) -> 0.85 | AF76: =IFERROR(AD76*(1-AE76)+(AD76*AE76*DJ!$D$3/VLOOKUP(Encodage!A76,DJ!$A$3:$D$25,4)),0) -> 0 | AG76: 0 | AH76: 0 | AI76: =VLOOKUP(D76,Paramètres!$A$24:$D$36,2) -> 100 | AK76: 0
A77: 2013 | B77: Bâtiment 4 | C77: 0 | D77: A sélectionner dans la liste déroulante | E77: 0 | F77: à encoder | G77: à encoder | V77: 0 | W77: 0 | X77: 0 | Y77: NA | Z77: NA | AA77: 0 | AB77: =IFERROR(X77/C77,0) -> 0 | AC77: =VLOOKUP(D77,Paramètres!$A$24:$D$36,3) -> 100 | AD77: =N77*Paramètres!$C$3+O77*Paramètres!$C$4+Encodage!P77*Paramètres!$C$5+Encodage!Q77*Paramètres!$C$6+R77*Paramètres!$C$7 -> 0 | AE77: =VLOOKUP(D77,Paramètres!$A$24:$E$36,5) -> 0.85 | AF77: =IFERROR(AD77*(1-AE77)+(AD77*AE77*DJ!$D$3/VLOOKUP(Encodage!A77,DJ!$A$3:$D$25,4)),0) -> 0 | AG77: 0 | AH77: 0 | AI77: =VLOOKUP(D77,Paramètres!$A$24:$D$36,2) -> 100 | AK77: 0
A78: 2013 | B78: Bâtiment 5 | C78: 0 | D78: A sélectionner dans la liste déroulante | E78: 0 | F78: à encoder | G78: à encoder | V78: 0 | W78: 0 | X78: 0 | Y78: NA | Z78: NA | AA78: =IF(X78=0,0,X78/X78-1) -> 0 | AB78: 0 | AC78: =VLOOKUP(D78,Paramètres!$A$24:$D$36,3) -> 100 | AD78: =N78*Paramètres!$C$3+O78*Paramètres!$C$4+Encodage!P78*Paramètres!$C$5+Encodage!Q78*Paramètres!$C$6+R78*Paramètres!$C$7 -> 0 | AE78: =VLOOKUP(D78,Paramètres!$A$24:$E$36,5) -> 0.85 | AF78: =IFERROR(AD78*(1-AE78)+(AD78*AE78*DJ!$D$3/VLOOKUP(Encodage!A78,DJ!$A$3:$D$25,4)),0) -> 0 | AG78: 0 | AH78: 0 | AI78: =VLOOKUP(D78,Paramètres!$A$24:$D$36,2) -> 100 | AK78: 0
A79: 2013 | B79: Bâtiment 6 | C79: 0 | D79: A sélectionner dans la liste déroulante | E79: 0 | F79: à encoder | G79: à encoder | V79: 0 | W79: 0 | X79: 0 | Y79: NA | Z79: NA | AA79: 0 | AB79: 0 | AC79: =VLOOKUP(D79,Paramètres!$A$24:$D$36,3) -> 100 | AD79: =N79*Paramètres!$C$3+O79*Paramètres!$C$4+Encodage!P79*Paramètres!$C$5+Encodage!Q79*Paramètres!$C$6+R79*Paramètres!$C$7 -> 0 | AE79: =VLOOKUP(D79,Paramètres!$A$24:$E$36,5) -> 0.85 | AF79: =IFERROR(AD79*(1-AE79)+(AD79*AE79*DJ!$D$3/VLOOKUP(Encodage!A79,DJ!$A$3:$D$25,4)),0) -> 0 | AG79: 0 | AH79: 0 | AI79: =VLOOKUP(D79,Paramètres!$A$24:$D$36,2) -> 100 | AK79: 0
A80: 2013 | B80: Bâtiment 7 | C80: 0 | D80: A sélectionner dans la liste déroulante | E80: 0 | F80: à encoder | G80: à encoder | V80: 0 | W80: 0 | X80: 0 | Y80: NA | Z80: NA | AA80: 0 | AB80: 0 | AC80: =VLOOKUP(D80,Paramètres!$A$24:$D$36,3) -> 100 | AD80: =N80*Paramètres!$C$3+O80*Paramètres!$C$4+Encodage!P80*Paramètres!$C$5+Encodage!Q80*Paramètres!$C$6+R80*Paramètres!$C$7 -> 0 | AE80: =VLOOKUP(D80,Paramètres!$A$24:$E$36,5) -> 0.85 | AF80: =IFERROR(AD80*(1-AE80)+(AD80*AE80*DJ!$D$3/VLOOKUP(Encodage!A80,DJ!$A$3:$D$25,4)),0) -> 0 | AG80: 0 | AH80: 0 | AI80: =VLOOKUP(D80,Paramètres!$A$24:$D$36,2) -> 100 | AK80: 0
A81: 2013 | B81: Bâtiment 8 | C81: 0 | D81: A sélectionner dans la liste déroulante | E81: 0 | F81: à encoder | G81: à encoder | V81: 0 | W81: 0 | X81: 0 | Y81: NA | Z81: NA | AA81: 0 | AB81: 0 | AC81: =VLOOKUP(D81,Paramètres!$A$24:$D$36,3) -> 100 | AD81: =N81*Paramètres!$C$3+O81*Paramètres!$C$4+Encodage!P81*Paramètres!$C$5+Encodage!Q81*Paramètres!$C$6+R81*Paramètres!$C$7 -> 0 | AE81: =VLOOKUP(D81,Paramètres!$A$24:$E$36,5) -> 0.85 | AF81: =IFERROR(AD81*(1-AE81)+(AD81*AE81*DJ!$D$3/VLOOKUP(Encodage!A81,DJ!$A$3:$D$25,4)),0) -> 0 | AG81: 0 | AH81: 0 | AI81: =VLOOKUP(D81,Paramètres!$A$24:$D$36,2) -> 100 | AK81: 0
A82: 2013 | B82: Bâtiment 9 | C82: 0 | D82: A sélectionner dans la liste déroulante | E82: 0 | F82: à encoder | G82: à encoder | V82: 0 | W82: =SUM(H82:J82) -> 0 | X82: 0 | Y82: NA | Z82: NA | AA82: 0 | AB82: 0 | AC82: =VLOOKUP(D82,Paramètres!$A$24:$D$36,3) -> 100 | AD82: =N82*Paramètres!$C$3+O82*Paramètres!$C$4+Encodage!P82*Paramètres!$C$5+Encodage!Q82*Paramètres!$C$6+R82*Paramètres!$C$7 -> 0 | AE82: =VLOOKUP(D82,Paramètres!$A$24:$E$36,5) -> 0.85 | AF82: =IFERROR(AD82*(1-AE82)+(AD82*AE82*DJ!$D$3/VLOOKUP(Encodage!A82,DJ!$A$3:$D$25,4)),0) -> 0 | AG82: 0 | AH82: 0 | AI82: =VLOOKUP(D82,Paramètres!$A$24:$D$36,2) -> 100 | AK82: 0
A83: 2013 | B83: Bâtiment 10 | C83: 0 | D83: A sélectionner dans la liste déroulante | E83: 0 | F83: à encoder | G83: à encoder | V83: 0 | W83: 0 | X83: 0 | Y83: NA | Z83: NA | AA83: 0 | AB83: 0 | AC83: =VLOOKUP(D83,Paramètres!$A$24:$D$36,3) -> 100 | AD83: =N83*Paramètres!$C$3+O83*Paramètres!$C$4+Encodage!P83*Paramètres!$C$5+Encodage!Q83*Paramètres!$C$6+R83*Paramètres!$C$7 -> 0 | AE83: =VLOOKUP(D83,Paramètres!$A$24:$E$36,5) -> 0.85 | AF83: =IFERROR(AD83*(1-AE83)+(AD83*AE83*DJ!$D$3/VLOOKUP(Encodage!A83,DJ!$A$3:$D$25,4)),0) -> 0 | AG83: 0 | AH83: 0 | AI83: =VLOOKUP(D83,Paramètres!$A$24:$D$36,2) -> 100 | AK83: 0
A84: 2013 | B84: Bâtiment 11 | C84: 0 | D84: A sélectionner dans la liste déroulante | E84: 0 | F84: à encoder | G84: à encoder | V84: 0 | W84: 0 | X84: 0 | Y84: NA | Z84: NA | AA84: 0 | AB84: =IFERROR(X84/C84,0) -> 0 | AC84: =VLOOKUP(D84,Paramètres!$A$24:$D$36,3) -> 100 | AD84: =N84*Paramètres!$C$3+O84*Paramètres!$C$4+Encodage!P84*Paramètres!$C$5+Encodage!Q84*Paramètres!$C$6+R84*Paramètres!$C$7 -> 0 | AE84: =VLOOKUP(D84,Paramètres!$A$24:$E$36,5) -> 0.85 | AF84: =IFERROR(AD84*(1-AE84)+(AD84*AE84*DJ!$D$3/VLOOKUP(Encodage!A84,DJ!$A$3:$D$25,4)),0) -> 0 | AG84: 0 | AH84: 0 | AI84: =VLOOKUP(D84,Paramètres!$A$24:$D$36,2) -> 100 | AK84: 0
A85: 2013 | B85: Bâtiment 12 | C85: 0 | D85: A sélectionner dans la liste déroulante | E85: 0 | F85: à encoder | G85: à encoder | V85: 0 | W85: 0 | X85: 0 | Y85: NA | Z85: NA | AA85: 0 | AB85: 0 | AC85: =VLOOKUP(D85,Paramètres!$A$24:$D$36,3) -> 100 | AD85: =N85*Paramètres!$C$3+O85*Paramètres!$C$4+Encodage!P85*Paramètres!$C$5+Encodage!Q85*Paramètres!$C$6+R85*Paramètres!$C$7 -> 0 | AE85: =VLOOKUP(D85,Paramètres!$A$24:$E$36,5) -> 0.85 | AF85: =IFERROR(AD85*(1-AE85)+(AD85*AE85*DJ!$D$3/VLOOKUP(Encodage!A85,DJ!$A$3:$D$25,4)),0) -> 0 | AG85: 0 | AH85: 0 | AI85: =VLOOKUP(D85,Paramètres!$A$24:$D$36,2) -> 100 | AK85: 0
A86: 2013 | B86: Total | C86: =SUM(C74:C85) -> 0 | H86: =SUM(H74:H85) -> 0 | I86: =SUM(I74:I85) -> 0 | J86: =SUM(J74:J85) -> 0 | K86: =SUM(K74:K85) -> 0 | L86: =SUM(L74:L85) -> 0 | M86: =SUM(M74:M85) -> 0 | N86: =SUM(N74:N85) -> 0 | O86: 0 | P86: 0 | Q86: 0 | R86: 0 | S86: 0 | T86: 0 | U86: 0 | W86: =SUM(W74:W85) -> 0 | X86: =SUM(X74:X85) -> 0 | AB86: =IFERROR(W86/C86,0) -> 0 | AC86: =VLOOKUP($D$6,Paramètres!$A$24:$D$36,3) -> 0 | AD86: =SUM(AD74:AD85) -> 0 | AF86: =SUM(AF74:AF85) -> 0 | AG86: 0 | AI86: =VLOOKUP($D$6,Paramètres!$A$24:$D$36,2) -> 0
A88: =A73+1 -> 2014
A89: =A88 -> 2014 | B89: =B74 -> Bâtiment 1 | C89: 0 | D89: A sélectionner dans la liste déroulante | E89: 0 | F89: =F74 -> à encoder | G89: =G74 -> à encoder | V89: =IF(T89=0,,T89/T74-1) -> 0 | W89: =SUM(H89:J89) -> 0 | X89: =W89+L89-M89 -> 0 | Y89: =IFERROR((L89-M89)/L89,"NA") -> NA | Z89: =IFERROR(J89/W89,"NA") -> NA | AA89: =IF(X89=0,0,X89/X89-1) -> 0 | AB89: =IFERROR(X89/C89,0) -> 0 | AC89: =VLOOKUP(D89,Paramètres!$A$24:$D$36,3) -> 100 | AD89: =N89*Paramètres!$C$3+O89*Paramètres!$C$4+Encodage!P89*Paramètres!$C$5+Encodage!Q89*Paramètres!$C$6+R89*Paramètres!$C$7 -> 0 | AE89: =VLOOKUP(D89,Paramètres!$A$24:$E$36,5) -> 0.85 | AF89: =IFERROR(AD89*(1-AE89)+(AD89*AE89*DJ!$D$3/VLOOKUP(Encodage!A89,DJ!$A$3:$D$25,4)),0) -> 0 | AG89: =IFERROR(AF89/C89,0) -> 0 | AH89: =IF(AF89=0,,AF89/AF74-1) -> 0 | AI89: =VLOOKUP(D89,Paramètres!$A$24:$D$36,2) -> 100 | AJ89: =IFERROR(AG89/AG$14,"") ->  | AK89: =AF89*AG89 -> 0
A90: =A89 -> 2014 | B90: Bâtiment 2 | C90: 0 | D90: A sélectionner dans la liste déroulante | E90: 0 | F90: à encoder | G90: à encoder | V90: =IF(T90=0,,T90/T75-1) -> 0 | W90: =SUM(H90:J90) -> 0 | X90: =W90+L90-M90 -> 0 | Y90: =IFERROR((L90-M90)/L90,"NA") -> NA | Z90: NA | AA90: =IF(X90=0,0,X90/X90-1) -> 0 | AB90: =IFERROR(X90/C90,0) -> 0 | AC90: =VLOOKUP(D90,Paramètres!$A$24:$D$36,3) -> 100 | AD90: =N90*Paramètres!$C$3+O90*Paramètres!$C$4+Encodage!P90*Paramètres!$C$5+Encodage!Q90*Paramètres!$C$6+R90*Paramètres!$C$7 -> 0 | AE90: =VLOOKUP(D90,Paramètres!$A$24:$E$36,5) -> 0.85 | AF90: =IFERROR(AD90*(1-AE90)+(AD90*AE90*DJ!$D$3/VLOOKUP(Encodage!A90,DJ!$A$3:$D$25,4)),0) -> 0 | AG90: 0 | AH90: =IF(AF90=0,,AF90/AF75-1) -> 0 | AI90: =VLOOKUP(D90,Paramètres!$A$24:$D$36,2) -> 100 | AK90: 0
A91: =A90 -> 2014 | B91: Bâtiment 3 | C91: 0 | D91: A sélectionner dans la liste déroulante | E91: 0 | F91: à encoder | G91: à encoder | V91: 0 | W91: 0 | X91: 0 | Y91: NA | Z91: NA | AA91: 0 | AB91: 0 | AC91: =VLOOKUP(D91,Paramètres!$A$24:$D$36,3) -> 100 | AD91: =N91*Paramètres!$C$3+O91*Paramètres!$C$4+Encodage!P91*Paramètres!$C$5+Encodage!Q91*Paramètres!$C$6+R91*Paramètres!$C$7 -> 0 | AE91: =VLOOKUP(D91,Paramètres!$A$24:$E$36,5) -> 0.85 | AF91: =IFERROR(AD91*(1-AE91)+(AD91*AE91*DJ!$D$3/VLOOKUP(Encodage!A91,DJ!$A$3:$D$25,4)),0) -> 0 | AG91: 0 | AH91: 0 | AI91: =VLOOKUP(D91,Paramètres!$A$24:$D$36,2) -> 100 | AK91: 0
A92: 2014 | B92: Bâtiment 4 | C92: 0 | D92: A sélectionner dans la liste déroulante | E92: 0 | F92: à encoder | G92: à encoder | V92: 0 | W92: 0 | X92: 0 | Y92: NA | Z92: NA | AA92: 0 | AB92: =IFERROR(X92/C92,0) -> 0 | AC92: =VLOOKUP(D92,Paramètres!$A$24:$D$36,3) -> 100 | AD92: =N92*Paramètres!$C$3+O92*Paramètres!$C$4+Encodage!P92*Paramètres!$C$5+Encodage!Q92*Paramètres!$C$6+R92*Paramètres!$C$7 -> 0 | AE92: =VLOOKUP(D92,Paramètres!$A$24:$E$36,5) -> 0.85 | AF92: =IFERROR(AD92*(1-AE92)+(AD92*AE92*DJ!$D$3/VLOOKUP(Encodage!A92,DJ!$A$3:$D$25,4)),0) -> 0 | AG92: 0 | AH92: 0 | AI92: =VLOOKUP(D92,Paramètres!$A$24:$D$36,2) -> 100 | AK92: 0
A93: 2014 | B93: Bâtiment 5 | C93: 0 | D93: A sélectionner dans la liste déroulante | E93: 0 | F93: à encoder | G93: à encoder | V93: 0 | W93: 0 | X93: 0 | Y93: NA | Z93: NA | AA93: =IF(X93=0,0,X93/X93-1) -> 0 | AB93: 0 | AC93: =VLOOKUP(D93,Paramètres!$A$24:$D$36,3) -> 100 | AD93: =N93*Paramètres!$C$3+O93*Paramètres!$C$4+Encodage!P93*Paramètres!$C$5+Encodage!Q93*Paramètres!$C$6+R93*Paramètres!$C$7 -> 0 | AE93: =VLOOKUP(D93,Paramètres!$A$24:$E$36,5) -> 0.85 | AF93: =IFERROR(AD93*(1-AE93)+(AD93*AE93*DJ!$D$3/VLOOKUP(Encodage!A93,DJ!$A$3:$D$25,4)),0) -> 0 | AG93: 0 | AH93: 0 | AI93: =VLOOKUP(D93,Paramètres!$A$24:$D$36,2) -> 100 | AK93: 0
A94: 2014 | B94: Bâtiment 6 | C94: 0 | D94: A sélectionner dans la liste déroulante | E94: 0 | F94: à encoder | G94: à encoder | V94: 0 | W94: 0 | X94: 0 | Y94: NA | Z94: NA | AA94: 0 | AB94: 0 | AC94: =VLOOKUP(D94,Paramètres!$A$24:$D$36,3) -> 100 | AD94: =N94*Paramètres!$C$3+O94*Paramètres!$C$4+Encodage!P94*Paramètres!$C$5+Encodage!Q94*Paramètres!$C$6+R94*Paramètres!$C$7 -> 0 | AE94: =VLOOKUP(D94,Paramètres!$A$24:$E$36,5) -> 0.85 | AF94: =IFERROR(AD94*(1-AE94)+(AD94*AE94*DJ!$D$3/VLOOKUP(Encodage!A94,DJ!$A$3:$D$25,4)),0) -> 0 | AG94: 0 | AH94: 0 | AI94: =VLOOKUP(D94,Paramètres!$A$24:$D$36,2) -> 100 | AK94: 0
A95: 2014 | B95: Bâtiment 7 | C95: 0 | D95: A sélectionner dans la liste déroulante | E95: 0 | F95: à encoder | G95: à encoder | V95: 0 | W95: 0 | X95: 0 | Y95: NA | Z95: NA | AA95: 0 | AB95: 0 | AC95: =VLOOKUP(D95,Paramètres!$A$24:$D$36,3) -> 100 | AD95: =N95*Paramètres!$C$3+O95*Paramètres!$C$4+Encodage!P95*Paramètres!$C$5+Encodage!Q95*Paramètres!$C$6+R95*Paramètres!$C$7 -> 0 | AE95: =VLOOKUP(D95,Paramètres!$A$24:$E$36,5) -> 0.85 | AF95: =IFERROR(AD95*(1-AE95)+(AD95*AE95*DJ!$D$3/VLOOKUP(Encodage!A95,DJ!$A$3:$D$25,4)),0) -> 0 | AG95: 0 | AH95: 0 | AI95: =VLOOKUP(D95,Paramètres!$A$24:$D$36,2) -> 100 | AK95: 0
A96: 2014 | B96: Bâtiment 8 | C96: 0 | D96: A sélectionner dans la liste déroulante | E96: 0 | F96: à encoder | G96: à encoder | V96: 0 | W96: 0 | X96: 0 | Y96: NA | Z96: NA | AA96: 0 | AB96: 0 | AC96: =VLOOKUP(D96,Paramètres!$A$24:$D$36,3) -> 100 | AD96: =N96*Paramètres!$C$3+O96*Paramètres!$C$4+Encodage!P96*Paramètres!$C$5+Encodage!Q96*Paramètres!$C$6+R96*Paramètres!$C$7 -> 0 | AE96: =VLOOKUP(D96,Paramètres!$A$24:$E$36,5) -> 0.85 | AF96: =IFERROR(AD96*(1-AE96)+(AD96*AE96*DJ!$D$3/VLOOKUP(Encodage!A96,DJ!$A$3:$D$25,4)),0) -> 0 | AG96: 0 | AH96: 0 | AI96: =VLOOKUP(D96,Paramètres!$A$24:$D$36,2) -> 100 | AK96: 0
A97: 2014 | B97: Bâtiment 9 | C97: 0 | D97: A sélectionner dans la liste déroulante | E97: 0 | F97: à encoder | G97: à encoder | V97: 0 | W97: =SUM(H97:J97) -> 0 | X97: 0 | Y97: NA | Z97: NA | AA97: 0 | AB97: 0 | AC97: =VLOOKUP(D97,Paramètres!$A$24:$D$36,3) -> 100 | AD97: =N97*Paramètres!$C$3+O97*Paramètres!$C$4+Encodage!P97*Paramètres!$C$5+Encodage!Q97*Paramètres!$C$6+R97*Paramètres!$C$7 -> 0 | AE97: =VLOOKUP(D97,Paramètres!$A$24:$E$36,5) -> 0.85 | AF97: =IFERROR(AD97*(1-AE97)+(AD97*AE97*DJ!$D$3/VLOOKUP(Encodage!A97,DJ!$A$3:$D$25,4)),0) -> 0 | AG97: 0 | AH97: 0 | AI97: =VLOOKUP(D97,Paramètres!$A$24:$D$36,2) -> 100 | AK97: 0
A98: 2014 | B98: Bâtiment 10 | C98: 0 | D98: A sélectionner dans la liste déroulante | E98: 0 | F98: à encoder | G98: à encoder | V98: 0 | W98: 0 | X98: 0 | Y98: NA | Z98: NA | AA98: 0 | AB98: 0 | AC98: =VLOOKUP(D98,Paramètres!$A$24:$D$36,3) -> 100 | AD98: =N98*Paramètres!$C$3+O98*Paramètres!$C$4+Encodage!P98*Paramètres!$C$5+Encodage!Q98*Paramètres!$C$6+R98*Paramètres!$C$7 -> 0 | AE98: =VLOOKUP(D98,Paramètres!$A$24:$E$36,5) -> 0.85 | AF98: =IFERROR(AD98*(1-AE98)+(AD98*AE98*DJ!$D$3/VLOOKUP(Encodage!A98,DJ!$A$3:$D$25,4)),0) -> 0 | AG98: 0 | AH98: 0 | AI98: =VLOOKUP(D98,Paramètres!$A$24:$D$36,2) -> 100 | AK98: 0
A99: 2014 | B99: Bâtiment 11 | C99: 0 | D99: A sélectionner dans la liste déroulante | E99: 0 | F99: à encoder | G99: à encoder | V99: 0 | W99: 0 | X99: 0 | Y99: NA | Z99: NA | AA99: 0 | AB99: =IFERROR(X99/C99,0) -> 0 | AC99: =VLOOKUP(D99,Paramètres!$A$24:$D$36,3) -> 100 | AD99: =N99*Paramètres!$C$3+O99*Paramètres!$C$4+Encodage!P99*Paramètres!$C$5+Encodage!Q99*Paramètres!$C$6+R99*Paramètres!$C$7 -> 0 | AE99: =VLOOKUP(D99,Paramètres!$A$24:$E$36,5) -> 0.85 | AF99: =IFERROR(AD99*(1-AE99)+(AD99*AE99*DJ!$D$3/VLOOKUP(Encodage!A99,DJ!$A$3:$D$25,4)),0) -> 0 | AG99: 0 | AH99: 0 | AI99: =VLOOKUP(D99,Paramètres!$A$24:$D$36,2) -> 100 | AK99: 0
A100: 2014 | B100: Bâtiment 12 | C100: 0 | D100: A sélectionner dans la liste déroulante | E100: 0 | F100: à encoder | G100: à encoder | V100: 0 | W100: 0 | X100: 0 | Y100: NA | Z100: NA | AA100: 0 | AB100: 0 | AC100: =VLOOKUP(D100,Paramètres!$A$24:$D$36,3) -> 100 | AD100: =N100*Paramètres!$C$3+O100*Paramètres!$C$4+Encodage!P100*Paramètres!$C$5+Encodage!Q100*Paramètres!$C$6+R100*Paramètres!$C$7 -> 0 | AE100: =VLOOKUP(D100,Paramètres!$A$24:$E$36,5) -> 0.85 | AF100: =IFERROR(AD100*(1-AE100)+(AD100*AE100*DJ!$D$3/VLOOKUP(Encodage!A100,DJ!$A$3:$D$25,4)),0) -> 0 | AG100: 0 | AH100: 0 | AI100: =VLOOKUP(D100,Paramètres!$A$24:$D$36,2) -> 100 | AK100: 0
A101: 2014 | B101: Total | C101: =SUM(C89:C100) -> 0 | H101: =SUM(H89:H100) -> 0 | I101: =SUM(I89:I100) -> 0 | J101: =SUM(J89:J100) -> 0 | K101: =SUM(K89:K100) -> 0 | L101: =SUM(L89:L100) -> 0 | M101: =SUM(M89:M100) -> 0 | N101: =SUM(N89:N100) -> 0 | O101: 0 | P101: 0 | Q101: 0 | R101: 0 | S101: 0 | T101: 0 | U101: 0 | W101: =SUM(W89:W100) -> 0 | X101: =SUM(X89:X100) -> 0 | AB101: =IFERROR(W101/C101,0) -> 0 | AC101: =VLOOKUP($D$6,Paramètres!$A$24:$D$36,3) -> 0 | AD101: =SUM(AD89:AD100) -> 0 | AF101: =SUM(AF89:AF100) -> 0 | AG101: 0 | AI101: =VLOOKUP($D$6,Paramètres!$A$24:$D$36,2) -> 0
A103: =A88+1 -> 2015
A104: =A103 -> 2015 | B104: =B89 -> Bâtiment 1 | C104: 0 | D104: A sélectionner dans la liste déroulante | E104: 0 | F104: =F89 -> à encoder | G104: =G89 -> à encoder | V104: =IF(T104=0,,T104/T89-1) -> 0 | W104: =SUM(H104:J104) -> 0 | X104: =W104+L104-M104 -> 0 | Y104: =IFERROR((L104-M104)/L104,"NA") -> NA | Z104: =IFERROR(J104/W104,"NA") -> NA | AA104: =IF(X104=0,0,X104/X104-1) -> 0 | AB104: =IFERROR(X104/C104,0) -> 0 | AC104: =VLOOKUP(D104,Paramètres!$A$24:$D$36,3) -> 100 | AD104: =N104*Paramètres!$C$3+O104*Paramètres!$C$4+Encodage!P104*Paramètres!$C$5+Encodage!Q104*Paramètres!$C$6+R104*Paramètres!$C$7 -> 0 | AE104: =VLOOKUP(D104,Paramètres!$A$24:$E$36,5) -> 0.85 | AF104: =IFERROR(AD104*(1-AE104)+(AD104*AE104*DJ!$D$3/VLOOKUP(Encodage!A104,DJ!$A$3:$D$25,4)),0) -> 0 | AG104: =IFERROR(AF104/C104,0) -> 0 | AH104: =IF(AF104=0,,AF104/AF89-1) -> 0 | AI104: =VLOOKUP(D104,Paramètres!$A$24:$D$36,2) -> 100 | AJ104: =IFERROR(AG104/AG$14,"") ->  | AK104: =AF104*AG104 -> 0
A105: =A104 -> 2015 | B105: Bâtiment 2 | C105: 0 | D105: A sélectionner dans la liste déroulante | E105: 0 | F105: à encoder | G105: à encoder | V105: =IF(T105=0,,T105/T90-1) -> 0 | W105: =SUM(H105:J105) -> 0 | X105: =W105+L105-M105 -> 0 | Y105: =IFERROR((L105-M105)/L105,"NA") -> NA | Z105: NA | AA105: =IF(X105=0,0,X105/X105-1) -> 0 | AB105: =IFERROR(X105/C105,0) -> 0 | AC105: =VLOOKUP(D105,Paramètres!$A$24:$D$36,3) -> 100 | AD105: =N105*Paramètres!$C$3+O105*Paramètres!$C$4+Encodage!P105*Paramètres!$C$5+Encodage!Q105*Paramètres!$C$6+R105*Paramètres!$C$7 -> 0 | AE105: =VLOOKUP(D105,Paramètres!$A$24:$E$36,5) -> 0.85 | AF105: =IFERROR(AD105*(1-AE105)+(AD105*AE105*DJ!$D$3/VLOOKUP(Encodage!A105,DJ!$A$3:$D$25,4)),0) -> 0 | AG105: 0 | AH105: =IF(AF105=0,,AF105/AF90-1) -> 0 | AI105: =VLOOKUP(D105,Paramètres!$A$24:$D$36,2) -> 100 | AK105: 0
A106: =A105 -> 2015 | B106: Bâtiment 3 | C106: 0 | D106: A sélectionner dans la liste déroulante | E106: 0 | F106: à encoder | G106: à encoder | V106: 0 | W106: 0 | X106: 0 | Y106: NA | Z106: NA | AA106: 0 | AB106: 0 | AC106: =VLOOKUP(D106,Paramètres!$A$24:$D$36,3) -> 100 | AD106: =N106*Paramètres!$C$3+O106*Paramètres!$C$4+Encodage!P106*Paramètres!$C$5+Encodage!Q106*Paramètres!$C$6+R106*Paramètres!$C$7 -> 0 | AE106: =VLOOKUP(D106,Paramètres!$A$24:$E$36,5) -> 0.85 | AF106: =IFERROR(AD106*(1-AE106)+(AD106*AE106*DJ!$D$3/VLOOKUP(Encodage!A106,DJ!$A$3:$D$25,4)),0) -> 0 | AG106: 0 | AH106: 0 | AI106: =VLOOKUP(D106,Paramètres!$A$24:$D$36,2) -> 100 | AK106: 0
A107: 2015 | B107: Bâtiment 4 | C107: 0 | D107: A sélectionner dans la liste déroulante | E107: 0 | F107: à encoder | G107: à encoder | V107: 0 | W107: 0 | X107: 0 | Y107: NA | Z107: NA | AA107: 0 | AB107: =IFERROR(X107/C107,0) -> 0 | AC107: =VLOOKUP(D107,Paramètres!$A$24:$D$36,3) -> 100 | AD107: =N107*Paramètres!$C$3+O107*Paramètres!$C$4+Encodage!P107*Paramètres!$C$5+Encodage!Q107*Paramètres!$C$6+R107*Paramètres!$C$7 -> 0 | AE107: =VLOOKUP(D107,Paramètres!$A$24:$E$36,5) -> 0.85 | AF107: =IFERROR(AD107*(1-AE107)+(AD107*AE107*DJ!$D$3/VLOOKUP(Encodage!A107,DJ!$A$3:$D$25,4)),0) -> 0 | AG107: 0 | AH107: 0 | AI107: =VLOOKUP(D107,Paramètres!$A$24:$D$36,2) -> 100 | AK107: 0
A108: 2015 | B108: Bâtiment 5 | C108: 0 | D108: A sélectionner dans la liste déroulante | E108: 0 | F108: à encoder | G108: à encoder | V108: 0 | W108: 0 | X108: 0 | Y108: NA | Z108: NA | AA108: =IF(X108=0,0,X108/X108-1) -> 0 | AB108: 0 | AC108: =VLOOKUP(D108,Paramètres!$A$24:$D$36,3) -> 100 | AD108: =N108*Paramètres!$C$3+O108*Paramètres!$C$4+Encodage!P108*Paramètres!$C$5+Encodage!Q108*Paramètres!$C$6+R108*Paramètres!$C$7 -> 0 | AE108: =VLOOKUP(D108,Paramètres!$A$24:$E$36,5) -> 0.85 | AF108: =IFERROR(AD108*(1-AE108)+(AD108*AE108*DJ!$D$3/VLOOKUP(Encodage!A108,DJ!$A$3:$D$25,4)),0) -> 0 | AG108: 0 | AH108: 0 | AI108: =VLOOKUP(D108,Paramètres!$A$24:$D$36,2) -> 100 | AK108: 0
A109: 2015 | B109: Bâtiment 6 | C109: 0 | D109: A sélectionner dans la liste déroulante | E109: 0 | F109: à encoder | G109: à encoder | V109: 0 | W109: 0 | X109: 0 | Y109: NA | Z109: NA | AA109: 0 | AB109: 0 | AC109: =VLOOKUP(D109,Paramètres!$A$24:$D$36,3) -> 100 | AD109: =N109*Paramètres!$C$3+O109*Paramètres!$C$4+Encodage!P109*Paramètres!$C$5+Encodage!Q109*Paramètres!$C$6+R109*Paramètres!$C$7 -> 0 | AE109: =VLOOKUP(D109,Paramètres!$A$24:$E$36,5) -> 0.85 | AF109: =IFERROR(AD109*(1-AE109)+(AD109*AE109*DJ!$D$3/VLOOKUP(Encodage!A109,DJ!$A$3:$D$25,4)),0) -> 0 | AG109: 0 | AH109: 0 | AI109: =VLOOKUP(D109,Paramètres!$A$24:$D$36,2) -> 100 | AK109: 0
A110: 2015 | B110: Bâtiment 7 | C110: 0 | D110: A sélectionner dans la liste déroulante | E110: 0 | F110: à encoder | G110: à encoder | V110: 0 | W110: 0 | X110: 0 | Y110: NA | Z110: NA | AA110: 0 | AB110: 0 | AC110: =VLOOKUP(D110,Paramètres!$A$24:$D$36,3) -> 100 | AD110: =N110*Paramètres!$C$3+O110*Paramètres!$C$4+Encodage!P110*Paramètres!$C$5+Encodage!Q110*Paramètres!$C$6+R110*Paramètres!$C$7 -> 0 | AE110: =VLOOKUP(D110,Paramètres!$A$24:$E$36,5) -> 0.85 | AF110: =IFERROR(AD110*(1-AE110)+(AD110*AE110*DJ!$D$3/VLOOKUP(Encodage!A110,DJ!$A$3:$D$25,4)),0) -> 0 | AG110: 0 | AH110: 0 | AI110: =VLOOKUP(D110,Paramètres!$A$24:$D$36,2) -> 100 | AK110: 0
A111: 2015 | B111: Bâtiment 8 | C111: 0 | D111: A sélectionner dans la liste déroulante | E111: 0 | F111: à encoder | G111: à encoder | V111: 0 | W111: 0 | X111: 0 | Y111: NA | Z111: NA | AA111: 0 | AB111: 0 | AC111: =VLOOKUP(D111,Paramètres!$A$24:$D$36,3) -> 100 | AD111: =N111*Paramètres!$C$3+O111*Paramètres!$C$4+Encodage!P111*Paramètres!$C$5+Encodage!Q111*Paramètres!$C$6+R111*Paramètres!$C$7 -> 0 | AE111: =VLOOKUP(D111,Paramètres!$A$24:$E$36,5) -> 0.85 | AF111: =IFERROR(AD111*(1-AE111)+(AD111*AE111*DJ!$D$3/VLOOKUP(Encodage!A111,DJ!$A$3:$D$25,4)),0) -> 0 | AG111: 0 | AH111: 0 | AI111: =VLOOKUP(D111,Paramètres!$A$24:$D$36,2) -> 100 | AK111: 0
A112: 2015 | B112: Bâtiment 9 | C112: 0 | D112: A sélectionner dans la liste déroulante | E112: 0 | F112: à encoder | G112: à encoder | V112: 0 | W112: =SUM(H112:J112) -> 0 | X112: 0 | Y112: NA | Z112: NA | AA112: 0 | AB112: 0 | AC112: =VLOOKUP(D112,Paramètres!$A$24:$D$36,3) -> 100 | AD112: =N112*Paramètres!$C$3+O112*Paramètres!$C$4+Encodage!P112*Paramètres!$C$5+Encodage!Q112*Paramètres!$C$6+R112*Paramètres!$C$7 -> 0 | AE112: =VLOOKUP(D112,Paramètres!$A$24:$E$36,5) -> 0.85 | AF112: =IFERROR(AD112*(1-AE112)+(AD112*AE112*DJ!$D$3/VLOOKUP(Encodage!A112,DJ!$A$3:$D$25,4)),0) -> 0 | AG112: 0 | AH112: 0 | AI112: =VLOOKUP(D112,Paramètres!$A$24:$D$36,2) -> 100 | AK112: 0
A113: 2015 | B113: Bâtiment 10 | C113: 0 | D113: A sélectionner dans la liste déroulante | E113: 0 | F113: à encoder | G113: à encoder | V113: 0 | W113: 0 | X113: 0 | Y113: NA | Z113: NA | AA113: 0 | AB113: 0 | AC113: =VLOOKUP(D113,Paramètres!$A$24:$D$36,3) -> 100 | AD113: =N113*Paramètres!$C$3+O113*Paramètres!$C$4+Encodage!P113*Paramètres!$C$5+Encodage!Q113*Paramètres!$C$6+R113*Paramètres!$C$7 -> 0 | AE113: =VLOOKUP(D113,Paramètres!$A$24:$E$36,5) -> 0.85 | AF113: =IFERROR(AD113*(1-AE113)+(AD113*AE113*DJ!$D$3/VLOOKUP(Encodage!A113,DJ!$A$3:$D$25,4)),0) -> 0 | AG113: 0 | AH113: 0 | AI113: =VLOOKUP(D113,Paramètres!$A$24:$D$36,2) -> 100 | AK113: 0
A114: 2015 | B114: Bâtiment 11 | C114: 0 | D114: A sélectionner dans la liste déroulante | E114: 0 | F114: à encoder | G114: à encoder | V114: 0 | W114: 0 | X114: 0 | Y114: NA | Z114: NA | AA114: 0 | AB114: =IFERROR(X114/C114,0) -> 0 | AC114: =VLOOKUP(D114,Paramètres!$A$24:$D$36,3) -> 100 | AD114: =N114*Paramètres!$C$3+O114*Paramètres!$C$4+Encodage!P114*Paramètres!$C$5+Encodage!Q114*Paramètres!$C$6+R114*Paramètres!$C$7 -> 0 | AE114: =VLOOKUP(D114,Paramètres!$A$24:$E$36,5) -> 0.85 | AF114: =IFERROR(AD114*(1-AE114)+(AD114*AE114*DJ!$D$3/VLOOKUP(Encodage!A114,DJ!$A$3:$D$25,4)),0) -> 0 | AG114: 0 | AH114: 0 | AI114: =VLOOKUP(D114,Paramètres!$A$24:$D$36,2) -> 100 | AK114: 0
A115: 2015 | B115: Bâtiment 12 | C115: 0 | D115: A sélectionner dans la liste déroulante | E115: 0 | F115: à encoder | G115: à encoder | V115: 0 | W115: 0 | X115: 0 | Y115: NA | Z115: NA | AA115: 0 | AB115: 0 | AC115: =VLOOKUP(D115,Paramètres!$A$24:$D$36,3) -> 100 | AD115: =N115*Paramètres!$C$3+O115*Paramètres!$C$4+Encodage!P115*Paramètres!$C$5+Encodage!Q115*Paramètres!$C$6+R115*Paramètres!$C$7 -> 0 | AE115: =VLOOKUP(D115,Paramètres!$A$24:$E$36,5) -> 0.85 | AF115: =IFERROR(AD115*(1-AE115)+(AD115*AE115*DJ!$D$3/VLOOKUP(Encodage!A115,DJ!$A$3:$D$25,4)),0) -> 0 | AG115: 0 | AH115: 0 | AI115: =VLOOKUP(D115,Paramètres!$A$24:$D$36,2) -> 100 | AK115: 0
A116: 2015 | B116: Total | C116: =SUM(C104:C115) -> 0 | H116: =SUM(H104:H115) -> 0 | I116: =SUM(I104:I115) -> 0 | J116: =SUM(J104:J115) -> 0 | K116: =SUM(K104:K115) -> 0 | L116: =SUM(L104:L115) -> 0 | M116: =SUM(M104:M115) -> 0 | N116: =SUM(N104:N115) -> 0 | O116: 0 | P116: 0 | Q116: 0 | R116: 0 | S116: 0 | T116: 0 | U116: 0 | W116: =SUM(W104:W115) -> 0 | X116: =SUM(X104:X115) -> 0 | AB116: =IFERROR(W116/C116,0) -> 0 | AC116: =VLOOKUP($D$6,Paramètres!$A$24:$D$36,3) -> 0 | AD116: =SUM(AD104:AD115) -> 0 | AF116: =SUM(AF104:AF115) -> 0 | AG116: 0 | AI116: =VLOOKUP($D$6,Paramètres!$A$24:$D$36,2) -> 0
A118: =A103+1 -> 2016
A119: =A118 -> 2016 | B119: =B104 -> Bâtiment 1 | C119: 0 | D119: A sélectionner dans la liste déroulante | E119: 0 | F119: =F104 -> à encoder | G119: =G104 -> à encoder | V119: =IF(T119=0,,T119/T104-1) -> 0 | W119: =SUM(H119:J119) -> 0 | X119: =W119+L119-M119 -> 0 | Y119: =IFERROR((L119-M119)/L119,"NA") -> NA | Z119: =IFERROR(J119/W119,"NA") -> NA | AA119: =IF(X119=0,0,X119/X119-1) -> 0 | AB119: =IFERROR(X119/C119,0) -> 0 | AC119: =VLOOKUP(D119,Paramètres!$A$24:$D$36,3) -> 100 | AD119: =N119*Paramètres!$C$3+O119*Paramètres!$C$4+Encodage!P119*Paramètres!$C$5+Encodage!Q119*Paramètres!$C$6+R119*Paramètres!$C$7 -> 0 | AE119: =VLOOKUP(D119,Paramètres!$A$24:$E$36,5) -> 0.85 | AF119: =IFERROR(AD119*(1-AE119)+(AD119*AE119*DJ!$D$3/VLOOKUP(Encodage!A119,DJ!$A$3:$D$25,4)),0) -> 0 | AG119: =IFERROR(AF119/C119,0) -> 0 | AH119: =IF(AF119=0,,AF119/AF104-1) -> 0 | AI119: =VLOOKUP(D119,Paramètres!$A$24:$D$36,2) -> 100 | AJ119: =IFERROR(AG119/AG$14,"") ->  | AK119: =AF119*AG119 -> 0
A120: =A119 -> 2016 | B120: Bâtiment 2 | C120: 0 | D120: A sélectionner dans la liste déroulante | E120: 0 | F120: à encoder | G120: à encoder | V120: =IF(T120=0,,T120/T105-1) -> 0 | W120: =SUM(H120:J120) -> 0 | X120: =W120+L120-M120 -> 0 | Y120: =IFERROR((L120-M120)/L120,"NA") -> NA | Z120: NA | AA120: =IF(X120=0,0,X120/X120-1) -> 0 | AB120: =IFERROR(X120/C120,0) -> 0 | AC120: =VLOOKUP(D120,Paramètres!$A$24:$D$36,3) -> 100 | AD120: =N120*Paramètres!$C$3+O120*Paramètres!$C$4+Encodage!P120*Paramètres!$C$5+Encodage!Q120*Paramètres!$C$6+R120*Paramètres!$C$7 -> 0 | AE120: =VLOOKUP(D120,Paramètres!$A$24:$E$36,5) -> 0.85 | AF120: =IFERROR(AD120*(1-AE120)+(AD120*AE120*DJ!$D$3/VLOOKUP(Encodage!A120,DJ!$A$3:$D$25,4)),0) -> 0 | AG120: 0 | AH120: =IF(AF120=0,,AF120/AF105-1) -> 0 | AI120: =VLOOKUP(D120,Paramètres!$A$24:$D$36,2) -> 100 | AK120: 0
A121: =A120 -> 2016 | B121: Bâtiment 3 | C121: 0 | D121: A sélectionner dans la liste déroulante | E121: 0 | F121: à encoder | G121: à encoder | V121: 0 | W121: 0 | X121: 0 | Y121: NA | Z121: NA | AA121: 0 | AB121: 0 | AC121: =VLOOKUP(D121,Paramètres!$A$24:$D$36,3) -> 100 | AD121: =N121*Paramètres!$C$3+O121*Paramètres!$C$4+Encodage!P121*Paramètres!$C$5+Encodage!Q121*Paramètres!$C$6+R121*Paramètres!$C$7 -> 0 | AE121: =VLOOKUP(D121,Paramètres!$A$24:$E$36,5) -> 0.85 | AF121: =IFERROR(AD121*(1-AE121)+(AD121*AE121*DJ!$D$3/VLOOKUP(Encodage!A121,DJ!$A$3:$D$25,4)),0) -> 0 | AG121: 0 | AH121: 0 | AI121: =VLOOKUP(D121,Paramètres!$A$24:$D$36,2) -> 100 | AK121: 0
A122: 2016 | B122: Bâtiment 4 | C122: 0 | D122: A sélectionner dans la liste déroulante | E122: 0 | F122: à encoder | G122: à encoder | V122: 0 | W122: 0 | X122: 0 | Y122: NA | Z122: NA | AA122: 0 | AB122: =IFERROR(X122/C122,0) -> 0 | AC122: =VLOOKUP(D122,Paramètres!$A$24:$D$36,3) -> 100 | AD122: =N122*Paramètres!$C$3+O122*Paramètres!$C$4+Encodage!P122*Paramètres!$C$5+Encodage!Q122*Paramètres!$C$6+R122*Paramètres!$C$7 -> 0 | AE122: =VLOOKUP(D122,Paramètres!$A$24:$E$36,5) -> 0.85 | AF122: =IFERROR(AD122*(1-AE122)+(AD122*AE122*DJ!$D$3/VLOOKUP(Encodage!A122,DJ!$A$3:$D$25,4)),0) -> 0 | AG122: 0 | AH122: 0 | AI122: =VLOOKUP(D122,Paramètres!$A$24:$D$36,2) -> 100 | AK122: 0
A123: 2016 | B123: Bâtiment 5 | C123: 0 | D123: A sélectionner dans la liste déroulante | E123: 0 | F123: à encoder | G123: à encoder | V123: 0 | W123: 0 | X123: 0 | Y123: NA | Z123: NA | AA123: =IF(X123=0,0,X123/X123-1) -> 0 | AB123: 0 | AC123: =VLOOKUP(D123,Paramètres!$A$24:$D$36,3) -> 100 | AD123: =N123*Paramètres!$C$3+O123*Paramètres!$C$4+Encodage!P123*Paramètres!$C$5+Encodage!Q123*Paramètres!$C$6+R123*Paramètres!$C$7 -> 0 | AE123: =VLOOKUP(D123,Paramètres!$A$24:$E$36,5) -> 0.85 | AF123: =IFERROR(AD123*(1-AE123)+(AD123*AE123*DJ!$D$3/VLOOKUP(Encodage!A123,DJ!$A$3:$D$25,4)),0) -> 0 | AG123: 0 | AH123: 0 | AI123: =VLOOKUP(D123,Paramètres!$A$24:$D$36,2) -> 100 | AK123: 0
A124: 2016 | B124: Bâtiment 6 | C124: 0 | D124: A sélectionner dans la liste déroulante | E124: 0 | F124: à encoder | G124: à encoder | V124: 0 | W124: 0 | X124: 0 | Y124: NA | Z124: NA | AA124: 0 | AB124: 0 | AC124: =VLOOKUP(D124,Paramètres!$A$24:$D$36,3) -> 100 | AD124: =N124*Paramètres!$C$3+O124*Paramètres!$C$4+Encodage!P124*Paramètres!$C$5+Encodage!Q124*Paramètres!$C$6+R124*Paramètres!$C$7 -> 0 | AE124: =VLOOKUP(D124,Paramètres!$A$24:$E$36,5) -> 0.85 | AF124: =IFERROR(AD124*(1-AE124)+(AD124*AE124*DJ!$D$3/VLOOKUP(Encodage!A124,DJ!$A$3:$D$25,4)),0) -> 0 | AG124: 0 | AH124: 0 | AI124: =VLOOKUP(D124,Paramètres!$A$24:$D$36,2) -> 100 | AK124: 0
A125: 2016 | B125: Bâtiment 7 | C125: 0 | D125: A sélectionner dans la liste déroulante | E125: 0 | F125: à encoder | G125: à encoder | V125: 0 | W125: 0 | X125: 0 | Y125: NA | Z125: NA | AA125: 0 | AB125: 0 | AC125: =VLOOKUP(D125,Paramètres!$A$24:$D$36,3) -> 100 | AD125: =N125*Paramètres!$C$3+O125*Paramètres!$C$4+Encodage!P125*Paramètres!$C$5+Encodage!Q125*Paramètres!$C$6+R125*Paramètres!$C$7 -> 0 | AE125: =VLOOKUP(D125,Paramètres!$A$24:$E$36,5) -> 0.85 | AF125: =IFERROR(AD125*(1-AE125)+(AD125*AE125*DJ!$D$3/VLOOKUP(Encodage!A125,DJ!$A$3:$D$25,4)),0) -> 0 | AG125: 0 | AH125: 0 | AI125: =VLOOKUP(D125,Paramètres!$A$24:$D$36,2) -> 100 | AK125: 0
A126: 2016 | B126: Bâtiment 8 | C126: 0 | D126: A sélectionner dans la liste déroulante | E126: 0 | F126: à encoder | G126: à encoder | V126: 0 | W126: 0 | X126: 0 | Y126: NA | Z126: NA | AA126: 0 | AB126: 0 | AC126: =VLOOKUP(D126,Paramètres!$A$24:$D$36,3) -> 100 | AD126: =N126*Paramètres!$C$3+O126*Paramètres!$C$4+Encodage!P126*Paramètres!$C$5+Encodage!Q126*Paramètres!$C$6+R126*Paramètres!$C$7 -> 0 | AE126: =VLOOKUP(D126,Paramètres!$A$24:$E$36,5) -> 0.85 | AF126: =IFERROR(AD126*(1-AE126)+(AD126*AE126*DJ!$D$3/VLOOKUP(Encodage!A126,DJ!$A$3:$D$25,4)),0) -> 0 | AG126: 0 | AH126: 0 | AI126: =VLOOKUP(D126,Paramètres!$A$24:$D$36,2) -> 100 | AK126: 0
A127: 2016 | B127: Bâtiment 9 | C127: 0 | D127: A sélectionner dans la liste déroulante | E127: 0 | F127: à encoder | G127: à encoder | V127: 0 | W127: =SUM(H127:J127) -> 0 | X127: 0 | Y127: NA | Z127: NA | AA127: 0 | AB127: 0 | AC127: =VLOOKUP(D127,Paramètres!$A$24:$D$36,3) -> 100 | AD127: =N127*Paramètres!$C$3+O127*Paramètres!$C$4+Encodage!P127*Paramètres!$C$5+Encodage!Q127*Paramètres!$C$6+R127*Paramètres!$C$7 -> 0 | AE127: =VLOOKUP(D127,Paramètres!$A$24:$E$36,5) -> 0.85 | AF127: =IFERROR(AD127*(1-AE127)+(AD127*AE127*DJ!$D$3/VLOOKUP(Encodage!A127,DJ!$A$3:$D$25,4)),0) -> 0 | AG127: 0 | AH127: 0 | AI127: =VLOOKUP(D127,Paramètres!$A$24:$D$36,2) -> 100 | AK127: 0
A128: 2016 | B128: Bâtiment 10 | C128: 0 | D128: A sélectionner dans la liste déroulante | E128: 0 | F128: à encoder | G128: à encoder | V128: 0 | W128: 0 | X128: 0 | Y128: NA | Z128: NA | AA128: 0 | AB128: 0 | AC128: =VLOOKUP(D128,Paramètres!$A$24:$D$36,3) -> 100 | AD128: =N128*Paramètres!$C$3+O128*Paramètres!$C$4+Encodage!P128*Paramètres!$C$5+Encodage!Q128*Paramètres!$C$6+R128*Paramètres!$C$7 -> 0 | AE128: =VLOOKUP(D128,Paramètres!$A$24:$E$36,5) -> 0.85 | AF128: =IFERROR(AD128*(1-AE128)+(AD128*AE128*DJ!$D$3/VLOOKUP(Encodage!A128,DJ!$A$3:$D$25,4)),0) -> 0 | AG128: 0 | AH128: 0 | AI128: =VLOOKUP(D128,Paramètres!$A$24:$D$36,2) -> 100 | AK128: 0
A129: 2016 | B129: Bâtiment 11 | C129: 0 | D129: A sélectionner dans la liste déroulante | E129: 0 | F129: à encoder | G129: à encoder | V129: 0 | W129: 0 | X129: 0 | Y129: NA | Z129: NA | AA129: 0 | AB129: =IFERROR(X129/C129,0) -> 0 | AC129: =VLOOKUP(D129,Paramètres!$A$24:$D$36,3) -> 100 | AD129: =N129*Paramètres!$C$3+O129*Paramètres!$C$4+Encodage!P129*Paramètres!$C$5+Encodage!Q129*Paramètres!$C$6+R129*Paramètres!$C$7 -> 0 | AE129: =VLOOKUP(D129,Paramètres!$A$24:$E$36,5) -> 0.85 | AF129: =IFERROR(AD129*(1-AE129)+(AD129*AE129*DJ!$D$3/VLOOKUP(Encodage!A129,DJ!$A$3:$D$25,4)),0) -> 0 | AG129: 0 | AH129: 0 | AI129: =VLOOKUP(D129,Paramètres!$A$24:$D$36,2) -> 100 | AK129: 0
A130: 2016 | B130: Bâtiment 12 | C130: 0 | D130: A sélectionner dans la liste déroulante | E130: 0 | F130: à encoder | G130: à encoder | V130: 0 | W130: 0 | X130: 0 | Y130: NA | Z130: NA | AA130: 0 | AB130: 0 | AC130: =VLOOKUP(D130,Paramètres!$A$24:$D$36,3) -> 100 | AD130: =N130*Paramètres!$C$3+O130*Paramètres!$C$4+Encodage!P130*Paramètres!$C$5+Encodage!Q130*Paramètres!$C$6+R130*Paramètres!$C$7 -> 0 | AE130: =VLOOKUP(D130,Paramètres!$A$24:$E$36,5) -> 0.85 | AF130: =IFERROR(AD130*(1-AE130)+(AD130*AE130*DJ!$D$3/VLOOKUP(Encodage!A130,DJ!$A$3:$D$25,4)),0) -> 0 | AG130: 0 | AH130: 0 | AI130: =VLOOKUP(D130,Paramètres!$A$24:$D$36,2) -> 100 | AK130: 0
A131: 2016 | B131: Total | C131: =SUM(C119:C130) -> 0 | H131: =SUM(H119:H130) -> 0 | I131: =SUM(I119:I130) -> 0 | J131: =SUM(J119:J130) -> 0 | K131: =SUM(K119:K130) -> 0 | L131: =SUM(L119:L130) -> 0 | M131: =SUM(M119:M130) -> 0 | N131: =SUM(N119:N130) -> 0 | O131: 0 | P131: 0 | Q131: 0 | R131: 0 | S131: 0 | T131: 0 | U131: 0 | W131: =SUM(W119:W130) -> 0 | X131: =SUM(X119:X130) -> 0 | AB131: =IFERROR(W131/C131,0) -> 0 | AC131: =VLOOKUP($D$6,Paramètres!$A$24:$D$36,3) -> 0 | AD131: =SUM(AD119:AD130) -> 0 | AF131: =SUM(AF119:AF130) -> 0 | AG131: 0 | AI131: =VLOOKUP($D$6,Paramètres!$A$24:$D$36,2) -> 0

Sheet Resumé
B2: Evolution des consommations totales de tous les bâtiments
B4: Consommations | C4: =Encodage!D4 -> 2009 | D4: =C4+1 -> 2010 | E4: 2011 | F4: 2012 | G4: 2013 | H4: 2014 | I4: 2015 | J4: 2016
B5: Consommation Elec totale [kWh] | C5: =Encodage!$W26 -> 0 | D5: =Encodage!W41 -> 0 | E5: =Encodage!W56 -> 0 | F5: =Encodage!$W71 -> 0 | G5: =Encodage!$W86 -> 0 | H5: =Encodage!$W101 -> 0 | I5: =Encodage!$W116 -> 0 | J5: =Encodage!$W131 -> 0
B6: Cons. Elec heures pleines [kWh] | C6: =Encodage!$I26 -> 0 | D6: =Encodage!I41 -> 0 | E6: =Encodage!I56 -> 0 | F6: =Encodage!$I71 -> 0 | G6: =Encodage!$I86 -> 0 | H6: =Encodage!$I101 -> 0 | I6: =Encodage!$I116 -> 0 | J6: =Encodage!$I131 -> 0
B7: Cons. Elec heures creuses [kWh] | C7: =Encodage!$J26 -> 0 | D7: =Encodage!J41 -> 0 | E7: =Encodage!J56 -> 0 | F7: =Encodage!$J71 -> 0 | G7: =Encodage!$J86 -> 0 | H7: =Encodage!$J101 -> 0 | I7: =Encodage!$J116 -> 0 | J7: =Encodage!$J131 -> 0
B8: Cons. élect spécifique [kWh/m²] | C8: =IFERROR(Encodage!$AB26,0) -> 0 | D8: =IFERROR(Encodage!$AB41,0) -> 0 | E8: =IFERROR(Encodage!$AB56,0) -> 0 | F8: =IFERROR(Encodage!$AB71,0) -> 0 | G8: =IFERROR(Encodage!$AB86,0) -> 0 | H8: =IFERROR(Encodage!$AB101,0) -> 0 | I8: =IFERROR(Encodage!$AB116,0) -> 0 | J8: =IFERROR(Encodage!$AB131,0) -> 0
B9: ="Cons. moyenne du secteur (= "&C9&" kWh/m²)" -> Cons. moyenne du secteur (= 0 kWh/m²) | C9: =VLOOKUP(Encodage!D6,Paramètres!$A$24:$D$36,3) -> 0 | D9: =$C$9 -> 0 | E9: =$C$9 -> 0 | F9: 0 | G9: 0 | H9: 0 | I9: 0 | J9: 0
B10: Consommation de combustibles [kWhi] | C10: =Encodage!$AD26 -> 0 | D10: =Encodage!AD41 -> 0 | E10: =Encodage!AD56 -> 0 | F10: =Encodage!$AD71 -> 0 | G10: =Encodage!$AD86 -> 0 | H10: =Encodage!$AD101 -> 0 | I10: =Encodage!$AD116 -> 0 | J10: =Encodage!$AD131 -> 0
B11: Cons. de combustible normalisé [kWhi] | C11: =Encodage!$AF26 -> 0 | D11: =Encodage!$AF41 -> 0 | E11: =Encodage!$AF56 -> 0 | F11: =Encodage!$AF71 -> 0 | G11: =Encodage!$AF86 -> 0 | H11: =Encodage!$AF101 -> 0 | I11: =Encodage!$AF116 -> 0 | J11: =Encodage!$AF131 -> 0
B12: Cons. combustible spécifique normalisée [kWhi/m²] | C12: =IFERROR(Encodage!$AG26,0) -> 0 | D12: =IFERROR(Encodage!AG41,0) -> 0 | E12: =IFERROR(Encodage!AG56,0) -> 0 | F12: =IFERROR(Encodage!$AG71,0) -> 0 | G12: =IFERROR(Encodage!$AG86,0) -> 0 | H12: =IFERROR(Encodage!$AG101,0) -> 0 | I12: =IFERROR(Encodage!$AG116,0) -> 0 | J12: =IFERROR(Encodage!$AG131,0) -> 0
B13: ="Consommation moyenne du secteur (= "&C13&" kWh/m²)" -> Consommation moyenne du secteur (= 0 kWh/m²) | C13: =VLOOKUP(Encodage!D6,Paramètres!$A$24:$D$36,2) -> 0 | D13: =$C$13 -> 0 | E13: 0 | F13: 0 | G13: 0 | H13: 0 | I13: 0 | J13: 0
B14: Degrés jours (16,5/16,5) | C14: =VLOOKUP(C4,DJ!$A$4:$D$25,4) -> 2212 | D14: =VLOOKUP(D4,DJ!$A$4:$D$25,4) -> 2703 | E14: =VLOOKUP(E4,DJ!$A$4:$D$25,4) -> 1928 | F14: =VLOOKUP(F4,DJ!$A$4:$D$25,4) -> 2327 | G14: =VLOOKUP(G4,DJ!$A$4:$D$25,4) -> 2537 | H14: =VLOOKUP(H4,DJ!$A$4:$D$25,4) -> 1828 | I14: =VLOOKUP(I4,DJ!$A$4:$D$25,4) -> 2112 | J14: =VLOOKUP(J4,DJ!$A$4:$D$25,4) -> 2329
B15: Eau (m³) | C15: =Encodage!$T26 -> 0 | D15: =Encodage!T41 -> 0 | E15: =Encodage!T56 -> 0 | F15: =Encodage!$T71 -> 0 | G15: =Encodage!$T86 -> 0 | H15: =Encodage!$T101 -> 0 | I15: =Encodage!$T116 -> 0 | J15: =Encodage!$T131 -> 0
B16: Coût total elec (€) | C16: =Encodage!$K$26 -> 0 | D16: =Encodage!$K$41 -> 0 | E16: =Encodage!$K$56 -> 0 | F16: =Encodage!$K$71 -> 0 | G16: =Encodage!$K$86 -> 0 | H16: =Encodage!$K$101 -> 0 | I16: =Encodage!K116 -> 0 | J16: =Encodage!$K$131 -> 0
B17: Coût total combustible (€) | C17: =Encodage!$S$26 -> 0 | D17: =Encodage!$S$41 -> 0 | E17: =Encodage!$S$56 -> 0 | F17: =Encodage!$S$71 -> 0 | G17: =Encodage!$S$86 -> 0 | H17: =Encodage!$S$101 -> 0 | I17: =Encodage!S117 -> 0 | J17: =Encodage!$S$131 -> 0
B18: Coût total eau (€) | C18: =Encodage!$U$26 -> 0 | D18: =Encodage!$U$41 -> 0 | E18: =Encodage!$U$56 -> 0 | F18: =Encodage!$U$71 -> 0 | G18: =Encodage!$U$86 -> 0 | H18: =Encodage!$U$101 -> 0 | I18: =Encodage!U118 -> 0 | J18: =Encodage!$U$131 -> 0
B20: Evolution par rapport à l’année du 1er encodage | C20: =C4 -> 2009 | D20: 2010 | E20: 2011 | F20: 2012 | G20: 2013 | H20: 2014 | I20: 2015 | J20: 2016
B21: =B5 -> Consommation Elec totale [kWh] | C21: =IFERROR(C5/$C5,0) -> 0 | D21: =IFERROR(D5/$C5,0) -> 0 | E21: 0 | F21: 0 | G21: 0 | H21: 0 | I21: 0 | J21: 0
B22: =B6 -> Cons. Elec heures pleines [kWh] | C22: =IFERROR(C6/$C6,0) -> 0 | D22: 0 | E22: 0 | F22: 0 | G22: 0 | H22: 0 | I22: 0 | J22: 0
B23: =B7 -> Cons. Elec heures creuses [kWh] | C23: =IFERROR(C7/$C7,0) -> 0 | D23: =IFERROR(D7/$C7,0) -> 0 | E23: 0 | F23: 0 | G23: 0 | H23: 0 | I23: 0 | J23: 0
B24: =B10 -> Consommation de combustibles [kWhi] | C24: =IFERROR(C10/$C10,0) -> 0 | D24: =IFERROR(D10/$C10,0) -> 0 | E24: 0 | F24: 0 | G24: 0 | H24: 0 | I24: 0 | J24: 0
B25: =B11 -> Cons. de combustible normalisé [kWhi] | C25: =IFERROR(C11/$C11,0) -> 0 | D25: =IFERROR(D11/$C11,0) -> 0 | E25: 0 | F25: 0 | G25: 0 | H25: 0 | I25: 0 | J25: 0
B26: =B12 -> Cons. combustible spécifique normalisée [kWhi/m²] | C26: =IFERROR(C12/$C12,0) -> 0 | D26: =IFERROR(D12/$C12,0) -> 0 | E26: 0 | F26: 0 | G26: 0 | H26: 0 | I26: 0 | J26: 0
B27: =B15 -> Eau (m³) | C27: =IFERROR(C15/$C15,0) -> 0 | D27: =IFERROR(D15/$C15,0) -> 0 | E27: 0 | F27: 0 | G27: 0 | H27: 0 | I27: 0 | J27: 0
B28: Coût total elec | C28: =IFERROR(C16/$C16,0) -> 0 | D28: 0 | E28: 0 | F28: 0 | G28: 0 | H28: 0 | I28: 0 | J28: 0
B29: Coût total combustible | C29: =IFERROR(C17/$C17,0) -> 0 | D29: 0 | E29: 0 | F29: 0 | G29: 0 | H29: 0 | I29: 0 | J29: 0
B30: Coût total eau | C30: =IFERROR(C18/$C18,0) -> 0 | D30: 0 | E30: 0 | F30: 0 | G30: 0 | H30: 0 | I30: 0 | J30: 0
B32: Evolution par rapport à l'année précédente | C32: =C20 -> 2009 | D32: 2010 | E32: 2011 | F32: 2012 | G32: 2013 | H32: 2014 | I32: 2015 | J32: 2016
B33: =B21 -> Consommation Elec totale [kWh] | D33: =IFERROR(IF(D21=0,0,D21/C21-1),"") -> 0 | E33: 0 | F33: 0 | G33: 0 | H33: 0 | I33: 0 | J33: 0
B34: Cons. Elec heures pleines [kWh] | D34: 0 | E34: 0 | F34: 0 | G34: 0 | H34: 0 | I34: 0 | J34: 0
B35: Cons. Elec heures creuses [kWh] | D35: 0 | E35: 0 | F35: 0 | G35: 0 | H35: 0 | I35: 0 | J35: 0
B36: Consommation de combustibles [kWhi] | D36: 0 | E36: 0 | F36: 0 | G36: 0 | H36: 0 | I36: 0 | J36: 0
B37: Cons. de combustible normalisé [kWhi] | D37: 0 | E37: 0 | F37: 0 | G37: 0 | H37: 0 | I37: 0 | J37: 0
B38: Cons. combustible spécifique normalisée [kWhi/m²] | D38: 0 | E38: 0 | F38: 0 | G38: 0 | H38: 0 | I38: 0 | J38: 0
B39: Eau (m³) | D39: =IFERROR(IF(D27=0,0,D27/C27-1),"") -> 0 | E39: 0 | F39: 0 | G39: 0 | H39: 0 | I39: 0 | J39: 0
B40: Coût total elec | D40: =IFERROR(IF(D28=0,0,D28/C28-1),"") -> 0 | E40: =IFERROR(IF(E28=0,0,E28/D28-1),"") -> 0 | F40: =IFERROR(IF(F28=0,0,F28/E28-1),"") -> 0 | G40: =IFERROR(IF(G28=0,0,G28/F28-1),"") -> 0 | H40: =IFERROR(IF(H28=0,0,H28/G28-1),"") -> 0 | I40: =IFERROR(IF(I28=0,0,I28/H28-1),"") -> 0 | J40: =IFERROR(IF(J28=0,0,J28/I28-1),"") -> 0
B41: Coût total combustible | D41: 0 | E41: 0 | F41: 0 | G41: 0 | H41: 0 | I41: 0 | J41: 0
B42: Coût total eau | D42: 0 | E42: 0 | F42: 0 | G42: 0 | H42: 0 | I42: 0 | J42: 0

Sheet G_Elec
A101: Consommation d'élec par bâtiment | G101: =$A$125 -> Consommation d'élec par bâtiment | L101: =$A$125 -> Consommation d'élec par bâtiment | Q101: =$A$125 -> Consommation d'élec par bâtiment
A103: =Encodage!A13 -> 2009 | G103: =Encodage!A28 -> 2010 | L103: =Encodage!A43 -> 2011 | Q103: =Encodage!A58 -> 2012
A125: Consommation d'élec par bâtiment | G125: =$A$125 -> Consommation d'élec par bâtiment | L125: =$A$125 -> Consommation d'élec par bâtiment | Q125: =$A$125 -> Consommation d'élec par bâtiment
A126: =Encodage!A73 -> 2013 | G126: =Encodage!A88 -> 2014 | L126: =Encodage!A103 -> 2015 | Q126: =Encodage!A118 -> 2016

Sheet G_Combustible

Sheet G_Eau

Sheet Paramètres (hidden)
A1: Coefficients de conversion:
A2: Electricité | B2: kWh | C2: 2.5 | D2: ="kWhp"&"/"&B2 -> kWhp/kWh
A3: gaz naturel | B3: kWhs | C3: 0.903 | D3: kWhp/kWhs
A4: gasoil | B4: litre | C4: =36500/3600 -> 10.13888889 | D4: kWhp/litre
A5: propane | B5: m³ | C5: 6.555555556 | D5: kWhp/m³
A6: pellets | B6: kg | C6: 4 | D6: kWhp/kg
A7: Autres | B7: kWh | C7: 1 | D7: kWhp/kWh
A9: Usage énergétique
A10: Chauffage
A11: Eau chaude sanitaire (ECS)
A12: Cuisine
A13: Ch + ECS
A14: Ch + cuisine
A15: ECS + Cuisine
A16: Ch + ECS + Cuisine
A17: cuisine collective
A18: air-conditionné
A19: chauffage électrique
A20: piscine
A22: Consommation moyenne du secteur (2012)
B23: Chauffage | C23: Elec | E23: Rapport Normalisation
A24: =DJ!A28 -> A sélectionner dans la liste déroulante | B24: 100 | C24: 100 | D24: kWh/m² | E24: =DJ!B28 -> 0.85
A25: =DJ!A29 -> Accueil de jour | B25: 0 | C25: 0 | D25: kWh/m² | E25: =DJ!B29 -> 0.85
A26: =DJ!A30 -> Bureau privé HT | B26: 102 | C26: 138 | D26: kWh/m² | E26: =DJ!B30 -> 0.85
A27: =DJ!A31 -> Bureau public HT | B27: 165 | C27: 65 | D27: kWh/m² | E27: =DJ!B31 -> 0.85
A28: =DJ!A32 -> Centre d’insertion socio-professionnel | B28: 0 | C28: 0 | D28: kWh/m² | E28: =DJ!B32 -> 0.85
A29: =DJ!A33 -> Crèche | B29: 0 | C29: 0 | D29: kWh/m² | E29: =DJ!B33 -> 0.85
A30: =DJ!A34 -> École | B30: 143 | C30: 26 | D30: kWh/m² | E30: =DJ!B34 -> 0.85
A31: =DJ!A35 -> Entreprise de travail adapté | B31: 0 | C31: 0 | D31: kWh/m² | E31: =DJ!B35 -> 0.85
A32: =DJ!A36 -> Etablissement culturel | B32: 177 | C32: 59 | D32: kWh/m² | E32: =DJ!B36 -> 0.85
A33: =DJ!A37 -> Etablissement sportif | B33: 150 | C33: 50 | D33: kWh/m² | E33: =DJ!B37 -> 0.85
A34: =DJ!A38 -> Hébergement | B34: 199 | C34: 72 | D34: kWh/m² | E34: =DJ!B38 -> 0.7
A35: =DJ!A39 -> Hôpitaux | B35: 194 | C35: 122 | D35: kWh/m² | E35: =DJ!B39 -> 0.7
A36: =DJ!A40 -> autre | B36: 0 | C36: 0 | D36: kWh/m² | E36: =DJ!B40 -> 0.85
A38: Energies renouvelables
A39: A sélectionner dans la liste déroulante
A40: o Biomasse sèche
A41: o Biomasse humide
A42: o Cogénération Biomasse
A43: o Solaire photovoltaïque
A44: o Solaire thermique
A45: o Eolien
A46: o Hydroélectricité
A47: o Géothermie profonde comme utilisateur
A48: o Pompe à Chaleur
A52: Secteur
A53: Hébergement
A54: Accueil de jour
A55: Bureau
A56: Crèche
A57: École
A58: Etablissement sportif
A59: Etablissement culturel
A60: Entreprise de travail adapté
A61: Centre d’insertion socio-professionnel
A62: autre

Sheet DJ (hidden)
A2: Degrés jours | B2: 15/15 | C2: 16,5/16,5 | D2: =IF(Encodage!$D$5=$B$2,B2,C2) -> 16,5/16,5
A3: degré jour normaux | B3: 1913 | C3: 2301 | D3: =IF(Encodage!$D$5=$B$2,B3,C3) -> 2301 | F3: Les degrés jours normaux sont la moyenne des degrés jours des 30 dernières années (de 1986 à 2015). Cette moyenne est revue par l'IRM tous les 5 ans
A4: 2009 | B4: 1819.7 | C4: 2212 | D4: =IF(Encodage!$D$5=$B$2,B4,C4) -> 2212
A5: 2010 | B5: 2309 | C5: 2703 | D5: =IF(Encodage!$D$5=$B$2,B5,C5) -> 2703
A6: 2011 | B6: 1514.5 | C6: 1928 | D6: =IF(Encodage!$D$5=$B$2,B6,C6) -> 1928
A7: 2012 | B7: 1914.7 | C7: 2327 | D7: =IF(Encodage!$D$5=$B$2,B7,C7) -> 2327
A8: 2013 | B8: 2137.7 | C8: 2537 | D8: =IF(Encodage!$D$5=$B$2,B8,C8) -> 2537
A9: 2014 | B9: 1424.1 | C9: 1828 | D9: =IF(Encodage!$D$5=$B$2,B9,C9) -> 1828
A10: 2015 | B10: 1688.3 | C10: 2112 | D10: =IF(Encodage!$D$5=$B$2,B10,C10) -> 2112
A11: 2016 | B11: 1947.6 | C11: 2329 | D11: =IF(Encodage!$D$5=$B$2,B11,C11) -> 2329
A12: 2017 | B12: 1780.4 | C12: 2155 | D12: =IF(Encodage!$D$5=$B$2,B12,C12) -> 2155
A13: 2018 | B13: 1739.3 | C13: 2091 | D13: =IF(Encodage!$D$5=$B$2,B13,C13) -> 2091
A14: 2019 | B14: 1675.65 | C14: 2076 | D14: =IF(Encodage!$D$5=$B$2,B14,C14) -> 2076
A15: 2020 | B15: 1517.85 | C15: 1867 | D15: =IF(Encodage!$D$5=$B$2,B15,C15) -> 1867
A16: 2021 | B16: 1909.2 | C16: 2286 | D16: =IF(Encodage!$D$5=$B$2,B16,C16) -> 2286
A17: 2022 | B17: 1554.1 | C17: 1922 | D17: =IF(Encodage!$D$5=$B$2,B17,C17) -> 1922
A18: 2023 | D18: =IF(Encodage!$D$5=$B$2,B18,C18) -> 0
A19: 2024 | D19: =IF(Encodage!$D$5=$B$2,B19,C19) -> 0
A20: 2025 | D20: =IF(Encodage!$D$5=$B$2,B20,C20) -> 0
A21: 2026 | D21: =IF(Encodage!$D$5=$B$2,B21,C21) -> 0
A22: 2027 | D22: =IF(Encodage!$D$5=$B$2,B22,C22) -> 0
A23: 2028 | D23: =IF(Encodage!$D$5=$B$2,B23,C23) -> 0
A24: 2029 | D24: =IF(Encodage!$D$5=$B$2,B24,C24) -> 0
A25: 2030 | D25: =IF(Encodage!$D$5=$B$2,B25,C25) -> 0
A27: Rapport Normalisation
A28: A sélectionner dans la liste déroulante | B28: 0.85
A29: Accueil de jour | B29: 0.85
A30: Bureau privé HT | B30: 0.85
A31: Bureau public HT | B31: 0.85
A32: Centre d’insertion socio-professionnel | B32: 0.85
A33: Crèche | B33: 0.85
A34: École | B34: 0.85
A35: Entreprise de travail adapté | B35: 0.85
A36: Etablissement culturel | B36: 0.85
A37: Etablissement sportif | B37: 0.85
A38: Hébergement | B38: 0.7
A39: Hôpitaux | B39: 0.7
A40: autre | B40: 0.85
